Body Name,Body Ref,Service Area Categorisation,Expense Type,Payment Date,Transaction Ref,Total Amount,Capital/Revenue,Supplier ID,Supplier Name
Shropshire,00GG,Central Services - Trading undertakings,Supplies And Services - Catering                      ,01/06/2017,6100226,23.65,Revenue,CRD76838,Bidfood                                 
Shropshire,00GG,Central Services - Trading undertakings,Supplies And Services - Catering                      ,01/06/2017,6100226,527.18,Revenue,CRD76838,Bidfood                                 
Shropshire,00GG,Central Services - Trading undertakings,Supplies And Services - Catering                      ,01/06/2017,6100260,21.76,Revenue,CRD76838,Bidfood                                 
Shropshire,00GG,Central Services - Trading undertakings,Supplies And Services - Catering                      ,01/06/2017,6100260,803.15,Revenue,CRD76838,Bidfood                                 
Shropshire,00GG,Central Services - Trading undertakings,Supplies And Services - Catering                      ,01/06/2017,6100093,938.78,Revenue,CRD76838,Bidfood                                 
Shropshire,00GG,Central Services - Trading undertakings,Supplies And Services - Catering                      ,01/06/2017,6100215,560.99,Revenue,CRD76838,Bidfood                                 
Shropshire,00GG,Central Services - Trading undertakings,Supplies And Services - Catering                      ,01/06/2017,6100091,12.77,Revenue,CRD76838,Bidfood                                 
Shropshire,00GG,Central Services - Trading undertakings,Supplies And Services - Catering                      ,01/06/2017,6100091,661.28,Revenue,CRD76838,Bidfood                                 
Shropshire,00GG,Central Services - Trading undertakings,Supplies And Services - Catering                      ,01/06/2017,6100174,558.82,Revenue,CRD76838,Bidfood                                 
Shropshire,00GG,Central Services - Trading undertakings,Supplies And Services - Catering                      ,01/06/2017,6100213,691.50,Revenue,CRD76838,Bidfood                                 
Shropshire,00GG,Central Services - Trading undertakings,Supplies And Services - Catering                      ,01/06/2017,6100108,18.14,Revenue,CRD76838,Bidfood                                 
Shropshire,00GG,Central Services - Trading undertakings,Supplies And Services - Catering                      ,01/06/2017,6100108,976.94,Revenue,CRD76838,Bidfood                                 
Shropshire,00GG,Central Services - Trading undertakings,Supplies And Services - Catering                      ,01/06/2017,6100208,9.07,Revenue,CRD76838,Bidfood                                 
Shropshire,00GG,Central Services - Trading undertakings,Supplies And Services - Catering                      ,01/06/2017,6100208,870.69,Revenue,CRD76838,Bidfood                                 
Shropshire,00GG,Central Services - Trading undertakings,Supplies And Services - Catering                      ,01/06/2017,6100154,30.54,Revenue,CRD76838,Bidfood                                 
Shropshire,00GG,Central Services - Trading undertakings,Supplies And Services - Catering                      ,01/06/2017,6100154,922.18,Revenue,CRD76838,Bidfood                                 
Shropshire,00GG,Central Services - Trading undertakings,Supplies And Services - Catering                      ,01/06/2017,6100235,20.22,Revenue,CRD76838,Bidfood                                 
Shropshire,00GG,Central Services - Trading undertakings,Supplies And Services - Catering                      ,01/06/2017,6100235,816.99,Revenue,CRD76838,Bidfood                                 
Shropshire,00GG,Central Services - Trading undertakings,Supplies And Services - Catering                      ,01/06/2017,6100121,512.51,Revenue,CRD76838,Bidfood                                 
Shropshire,00GG,Central Services - Trading undertakings,Supplies And Services - Catering                      ,01/06/2017,6100270,36.46,Revenue,CRD76838,Bidfood                                 
Shropshire,00GG,Central Services - Trading undertakings,Supplies And Services - Catering                      ,01/06/2017,6100270,597.83,Revenue,CRD76838,Bidfood                                 
Shropshire,00GG,Central Services - Trading undertakings,Supplies And Services - Catering                      ,01/06/2017,6100233,524.12,Revenue,CRD76838,Bidfood                                 
Shropshire,00GG,Central Services - Trading undertakings,Supplies And Services - Catering                      ,01/06/2017,6100132,504.60,Revenue,CRD76838,Bidfood                                 
Shropshire,00GG,Central Services - Trading undertakings,Supplies And Services - Catering                      ,01/06/2017,6100167,702.29,Revenue,CRD76838,Bidfood                                 
Shropshire,00GG,Central Services - Trading undertakings,Supplies And Services - Catering                      ,01/06/2017,6100262,518.57,Revenue,CRD76838,Bidfood                                 
Shropshire,00GG,Central Services - Trading undertakings,Supplies And Services - Catering                      ,01/06/2017,6100257,771.88,Revenue,CRD76838,Bidfood                                 
Shropshire,00GG,Central Services - Trading undertakings,Supplies And Services - Catering                      ,01/06/2017,6100264,767.17,Revenue,CRD76838,Bidfood                                 
Shropshire,00GG,Central Services - Trading undertakings,Supplies And Services - Catering                      ,01/06/2017,6100124,12.76,Revenue,CRD76838,Bidfood                                 
Shropshire,00GG,Central Services - Trading undertakings,Supplies And Services - Catering                      ,01/06/2017,6100124,568.39,Revenue,CRD76838,Bidfood                                 
Shropshire,00GG,Central Services - Trading undertakings,Supplies And Services - Catering                      ,01/06/2017,6100218,782.66,Revenue,CRD76838,Bidfood                                 
Shropshire,00GG,Central Services - Trading undertakings,Supplies And Services - Catering                      ,01/06/2017,6100285,20.22,Revenue,CRD76838,Bidfood                                 
Shropshire,00GG,Central Services - Trading undertakings,Supplies And Services - Catering                      ,01/06/2017,6100285,698.79,Revenue,CRD76838,Bidfood                                 
Shropshire,00GG,Central Services - Trading undertakings,Supplies And Services - Catering                      ,01/06/2017,6100120,"1,405.57",Revenue,CRD76838,Bidfood                                 
Shropshire,00GG,Central Services - Trading undertakings,Supplies And Services - Catering                      ,01/06/2017,6100179,52.22,Revenue,CRD76838,Bidfood                                 
Shropshire,00GG,Central Services - Trading undertakings,Supplies And Services - Catering                      ,01/06/2017,6100179,"1,260.72",Revenue,CRD76838,Bidfood                                 
Shropshire,00GG,Central Services - Trading undertakings,Supplies And Services - Catering                      ,01/06/2017,6100269,22.38,Revenue,CRD76838,Bidfood                                 
Shropshire,00GG,Central Services - Trading undertakings,Supplies And Services - Catering                      ,01/06/2017,6100269,866.46,Revenue,CRD76838,Bidfood                                 
Shropshire,00GG,Central Services - Trading undertakings,Supplies And Services - Catering                      ,01/06/2017,6100187,42.72,Revenue,CRD76838,Bidfood                                 
Shropshire,00GG,Central Services - Trading undertakings,Supplies And Services - Catering                      ,01/06/2017,6100187,622.06,Revenue,CRD76838,Bidfood                                 
Shropshire,00GG,Central Services - Trading undertakings,Supplies And Services - Catering                      ,01/06/2017,6100267,19.86,Revenue,CRD76838,Bidfood                                 
Shropshire,00GG,Central Services - Trading undertakings,Supplies And Services - Catering                      ,01/06/2017,6100267,584.46,Revenue,CRD76838,Bidfood                                 
Shropshire,00GG,Central Services - Trading undertakings,Supplies And Services - Catering                      ,01/06/2017,6100130,66.40,Revenue,CRD76838,Bidfood                                 
Shropshire,00GG,Central Services - Trading undertakings,Supplies And Services - Catering                      ,01/06/2017,6100130,689.38,Revenue,CRD76838,Bidfood                                 
Shropshire,00GG,Central Services - Trading undertakings,Supplies And Services - Catering                      ,01/06/2017,6100094,25.68,Revenue,CRD76838,Bidfood                                 
Shropshire,00GG,Central Services - Trading undertakings,Supplies And Services - Catering                      ,01/06/2017,6100094,527.14,Revenue,CRD76838,Bidfood                                 
Shropshire,00GG,Central Services - Trading undertakings,Supplies And Services - Catering                      ,01/06/2017,6100230,25.68,Revenue,CRD76838,Bidfood                                 
Shropshire,00GG,Central Services - Trading undertakings,Supplies And Services - Catering                      ,01/06/2017,6100230,538.28,Revenue,CRD76838,Bidfood                                 
Shropshire,00GG,Central Services - Trading undertakings,Supplies And Services - Catering                      ,01/06/2017,6100164,570.87,Revenue,CRD76838,Bidfood                                 
Shropshire,00GG,Central Services - Trading undertakings,Supplies And Services - Catering                      ,01/06/2017,6100169,746.08,Revenue,CRD76838,Bidfood                                 
Shropshire,00GG,Central Services - Trading undertakings,Supplies And Services - Catering                      ,01/06/2017,6100248,628.29,Revenue,CRD76838,Bidfood                                 
Shropshire,00GG,Central Services - Trading undertakings,Supplies And Services - Catering                      ,01/06/2017,6100277,60.54,Revenue,CRD76838,Bidfood                                 
Shropshire,00GG,Central Services - Trading undertakings,Supplies And Services - Catering                      ,01/06/2017,6100277,638.02,Revenue,CRD76838,Bidfood                                 
Shropshire,00GG,Central Services - Trading undertakings,Supplies And Services - Catering                      ,01/06/2017,6100136,630.61,Revenue,CRD76838,Bidfood                                 
Shropshire,00GG,Central Services - Trading undertakings,Supplies And Services - Catering                      ,01/06/2017,6100263,693.86,Revenue,CRD76838,Bidfood                                 
Shropshire,00GG,Central Services - Trading undertakings,Supplies And Services - Catering                      ,01/06/2017,6100171,51.36,Revenue,CRD76838,Bidfood                                 
Shropshire,00GG,Central Services - Trading undertakings,Supplies And Services - Catering                      ,01/06/2017,6100171,563.24,Revenue,CRD76838,Bidfood                                 
Shropshire,00GG,Central Services - Trading undertakings,Supplies And Services - Catering                      ,01/06/2017,6100250,672.61,Revenue,CRD76838,Bidfood                                 
Shropshire,00GG,Central Services - Trading undertakings,Supplies And Services - Catering                      ,01/06/2017,6100194,761.81,Revenue,CRD76838,Bidfood                                 
Shropshire,00GG,Central Services - Trading undertakings,Supplies And Services - Catering                      ,01/06/2017,6100276,585.28,Revenue,CRD76838,Bidfood                                 
Shropshire,00GG,Central Services - Trading undertakings,Supplies And Services - Catering                      ,01/06/2017,6100249,38.22,Revenue,CRD76838,Bidfood                                 
Shropshire,00GG,Central Services - Trading undertakings,Supplies And Services - Catering                      ,01/06/2017,6100249,526.12,Revenue,CRD76838,Bidfood                                 
Shropshire,00GG,Central Services - Trading undertakings,Supplies And Services - Catering                      ,01/06/2017,6100273,512.77,Revenue,CRD76838,Bidfood                                 
Shropshire,00GG,Central Services - Trading undertakings,Supplies And Services - Catering                      ,01/06/2017,6100118,"1,246.22",Revenue,CRD76838,Bidfood                                 
Shropshire,00GG,Central Services - Trading undertakings,Supplies And Services - Catering                      ,01/06/2017,6100210,9.34,Revenue,CRD76838,Bidfood                                 
Shropshire,00GG,Central Services - Trading undertakings,Supplies And Services - Catering                      ,01/06/2017,6100210,"1,227.69",Revenue,CRD76838,Bidfood                                 
Shropshire,00GG,Central Services - Trading undertakings,Supplies And Services - Catering                      ,01/06/2017,6100274,7.46,Revenue,CRD76838,Bidfood                                 
Shropshire,00GG,Central Services - Trading undertakings,Supplies And Services - Catering                      ,01/06/2017,6100274,660.97,Revenue,CRD76838,Bidfood                                 
Shropshire,00GG,Central Services - Trading Services,Supplies And Services - Catering                      ,01/06/2017,6100160,548.77,Revenue,CRD76838,Bidfood                                 
Shropshire,00GG,Central Services - Trading Services,Supplies And Services - Catering                      ,01/06/2017,6100156,"1,015.33",Revenue,CRD76838,Bidfood                                 
Shropshire,00GG,Central Services - Trading Services,Supplies And Services - Catering                      ,01/06/2017,6100240,24.10,Revenue,CRD76838,Bidfood                                 
Shropshire,00GG,Central Services - Trading Services,Supplies And Services - Catering                      ,01/06/2017,6100240,"1,406.23",Revenue,CRD76838,Bidfood                                 
Shropshire,00GG,Central Services - Trading Services,Supplies And Services - Catering                      ,01/06/2017,6100111,"1,143.61",Revenue,CRD76838,Bidfood                                 
Shropshire,00GG,Central Services - Trading Services,Supplies And Services - Catering                      ,01/06/2017,6100214,95.83,Revenue,CRD76838,Bidfood                                 
Shropshire,00GG,Central Services - Trading Services,Supplies And Services - Catering                      ,01/06/2017,6100214,452.98,Revenue,CRD76838,Bidfood                                 
Shropshire,00GG,Central Services - Trading Services,Supplies And Services - Catering                      ,01/06/2017,6100104,37.73,Revenue,CRD76838,Bidfood                                 
Shropshire,00GG,Central Services - Trading Services,Supplies And Services - Catering                      ,01/06/2017,6100104,799.23,Revenue,CRD76838,Bidfood                                 
Shropshire,00GG,Central Services - Trading Services,Supplies And Services - Catering                      ,01/06/2017,6100170,27.23,Revenue,CRD76838,Bidfood                                 
Shropshire,00GG,Central Services - Trading Services,Supplies And Services - Catering                      ,01/06/2017,6100170,557.62,Revenue,CRD76838,Bidfood                                 
Shropshire,00GG,Central Services - Trading undertakings,Supplies And Services - Catering                      ,01/06/2017,6100238,12.77,Revenue,CRD76838,Bidfood                                 
Shropshire,00GG,Central Services - Trading undertakings,Supplies And Services - Catering                      ,01/06/2017,6100238,549.28,Revenue,CRD76838,Bidfood                                 
Shropshire,00GG,Children's and Education Services - Early Years,Third Party Payments - Other Committees/Establishmts ,01/06/2017,6099541,"2,812.32",Revenue,NUS00197,Kidszone                                
Shropshire,00GG,Children's and Education Services - Early Years,Third Party Payments - Other Committees/Establishmts ,01/06/2017,6099541,599.13,Revenue,NUS00197,Kidszone                                
Shropshire,00GG,Children's and Education Services - Social Care and Safeguards Looked After Children,Third Party Payments - Private Contractors           ,01/06/2017,6099629,"2,400.00",Revenue,CRT05038,Carnelian (Platinum Servs For Children) 
Shropshire,00GG,Children's and Education Services - Social Care and Safeguards Looked After Children,Third Party Payments - Private Contractors           ,01/06/2017,6099630,936.00,Revenue,CRT05038,Carnelian (Platinum Servs For Children) 
Shropshire,00GG,Children's and Education Services - Social Care and Safeguards Looked After Children,Premises Related - Rents                         ,01/06/2017,6099635,325.00,Revenue,CRT05254,Just One Recruitment & Training Ltd     
Shropshire,00GG,Children's and Education Services - Social Care and Safeguards Looked After Children,Third Party Payments - Private Contractors           ,01/06/2017,6099635,"1,845.55",Revenue,CRT05254,Just One Recruitment & Training Ltd     
Shropshire,00GG,Children's and Education Services - Social Care and Safeguards Looked After Children,Premises Related - Rents                         ,01/06/2017,6099636,325.00,Revenue,CRT05254,Just One Recruitment & Training Ltd     
Shropshire,00GG,Children's and Education Services - Social Care and Safeguards Looked After Children,Third Party Payments - Private Contractors           ,01/06/2017,6099636,"1,845.55",Revenue,CRT05254,Just One Recruitment & Training Ltd     
Shropshire,00GG,Children's and Education Services - Social Care and Safeguards Looked After Children,Premises Related - Rents                         ,01/06/2017,6099637,325.00,Revenue,CRT05254,Just One Recruitment & Training Ltd     
Shropshire,00GG,Children's and Education Services - Social Care and Safeguards Looked After Children,Third Party Payments - Private Contractors           ,01/06/2017,6099637,"1,845.55",Revenue,CRT05254,Just One Recruitment & Training Ltd     
Shropshire,00GG,Children's and Education Services - Social Care and Safeguards Looked After Children,Premises Related - Rents                         ,01/06/2017,6099638,325.00,Revenue,CRT05254,Just One Recruitment & Training Ltd     
Shropshire,00GG,Children's and Education Services - Social Care and Safeguards Looked After Children,Third Party Payments - Private Contractors           ,01/06/2017,6099638,"1,845.55",Revenue,CRT05254,Just One Recruitment & Training Ltd     
Shropshire,00GG,Children's and Education Services - Social Care and Safeguards Looked After Children,Premises Related - Rents                         ,01/06/2017,6099639,325.00,Revenue,CRT05254,Just One Recruitment & Training Ltd     
Shropshire,00GG,Children's and Education Services - Social Care and Safeguards Looked After Children,Third Party Payments - Private Contractors           ,01/06/2017,6099639,"1,845.55",Revenue,CRT05254,Just One Recruitment & Training Ltd     
Shropshire,00GG,Children's and Education Services - Social Care and Safeguards Looked After Children,Premises Related - Rents                         ,01/06/2017,6099640,325.00,Revenue,CRT05254,Just One Recruitment & Training Ltd     
Shropshire,00GG,Children's and Education Services - Social Care and Safeguards Looked After Children,Third Party Payments - Private Contractors           ,01/06/2017,6099640,"1,845.55",Revenue,CRT05254,Just One Recruitment & Training Ltd     
Shropshire,00GG,Children's and Education Services - Social Care and Safeguards Looked After Children,Premises Related - Rents                         ,01/06/2017,6099641,325.00,Revenue,CRT05254,Just One Recruitment & Training Ltd     
Shropshire,00GG,Children's and Education Services - Social Care and Safeguards Looked After Children,Third Party Payments - Private Contractors           ,01/06/2017,6099641,"1,845.55",Revenue,CRT05254,Just One Recruitment & Training Ltd     
Shropshire,00GG,Children's and Education Services - Social Care and Safeguards Looked After Children,Premises Related - Rents                         ,01/06/2017,6099642,325.00,Revenue,CRT05254,Just One Recruitment & Training Ltd     
Shropshire,00GG,Children's and Education Services - Social Care and Safeguards Looked After Children,Third Party Payments - Private Contractors           ,01/06/2017,6099642,"1,845.55",Revenue,CRT05254,Just One Recruitment & Training Ltd     
Shropshire,00GG,Children's and Education Services - Social Care and Safeguards Looked After Children,Premises Related - Rents                         ,01/06/2017,6099643,325.00,Revenue,CRT05254,Just One Recruitment & Training Ltd     
Shropshire,00GG,Children's and Education Services - Social Care and Safeguards Looked After Children,Third Party Payments - Private Contractors           ,01/06/2017,6099643,"1,845.55",Revenue,CRT05254,Just One Recruitment & Training Ltd     
Shropshire,00GG,Children's and Education Services - Social Care and Safeguards Looked After Children,Premises Related - Rents                         ,01/06/2017,6099644,325.00,Revenue,CRT05254,Just One Recruitment & Training Ltd     
Shropshire,00GG,Children's and Education Services - Social Care and Safeguards Looked After Children,Third Party Payments - Private Contractors           ,01/06/2017,6099644,"1,174.65",Revenue,CRT05254,Just One Recruitment & Training Ltd     
Shropshire,00GG,Children's and Education Services - Social Care and Safeguards Looked After Children,Premises Related - Rents                         ,01/06/2017,6099645,325.00,Revenue,CRT05254,Just One Recruitment & Training Ltd     
Shropshire,00GG,Children's and Education Services - Social Care and Safeguards Looked After Children,Third Party Payments - Private Contractors           ,01/06/2017,6099645,"1,845.55",Revenue,CRT05254,Just One Recruitment & Training Ltd     
Shropshire,00GG,Children's and Education Services - Social Care and Safeguards Looked After Children,Premises Related - Rents                         ,01/06/2017,6099676,-670.90,Revenue,CRT05254,Just One Recruitment & Training Ltd     
Shropshire,00GG,Children's and Education Services - Social Care and Safeguards Looked After Children,Premises Related - Rents                         ,01/06/2017,6099646,325.00,Revenue,CRT05254,Just One Recruitment & Training Ltd     
Shropshire,00GG,Children's and Education Services - Social Care and Safeguards Looked After Children,Third Party Payments - Private Contractors           ,01/06/2017,6099646,"1,174.65",Revenue,CRT05254,Just One Recruitment & Training Ltd     
Shropshire,00GG,Children's and Education Services - Social Care and Safeguards Looked After Children,Third Party Payments - Private Contractors           ,01/06/2017,6099623,"5,794.29",Revenue,CRD98442,New Focas                               
Shropshire,00GG,Children's and Education Services - Social Care and Safeguards Looked After Children,Third Party Payments - Private Contractors           ,01/06/2017,6099625,"3,520.71",Revenue,CRT03388,Priory Fostering Service                
Shropshire,00GG,Children's and Education Services - Social Care and Safeguards Looked After Children,Third Party Payments - Private Contractors           ,01/06/2017,6099626,"3,149.29",Revenue,CRT03484,New Chapters Fostercare                 
Shropshire,00GG,Children's and Education Services - Social Care and Safeguards Looked After Children,Third Party Payments - Private Contractors           ,01/06/2017,6099627,"3,315.14",Revenue,CRT03484,New Chapters Fostercare                 
Shropshire,00GG,Children's and Education Services - Social Care and Safeguards Looked After Children,Third Party Payments - Private Contractors           ,01/06/2017,6099628,"3,165.34",Revenue,CRT03484,New Chapters Fostercare                 
Shropshire,00GG,Adult Social Care - Adults aged under 65 with physical disability or sensory impairment,Third Party Payments - Private Contractors           ,01/06/2017,6099668,725.20,Revenue,CRD86770,Priority Care (Shropshire) Ltd          
Shropshire,00GG,Adult Social Care - Adults aged under 65 with physical disability or sensory impairment,Third Party Payments - Private Contractors           ,01/06/2017,6099669,614.20,Revenue,CRD86770,Priority Care (Shropshire) Ltd          
Shropshire,00GG,Adult Social Care - Adults aged under 65 with physical disability or sensory impairment,Third Party Payments - Private Contractors           ,01/06/2017,6099670,518.00,Revenue,CRD86770,Priority Care (Shropshire) Ltd          
Shropshire,00GG,Adult Social Care - Adults aged under 65 with physical disability or sensory impairment,Third Party Payments - Private Contractors           ,01/06/2017,6077194,"1,013.52",Revenue,CRD80377,Abbey Care Direct Ltd                   
Shropshire,00GG,Adult Social Care - Adults aged under 65 with physical disability or sensory impairment,Third Party Payments - Private Contractors           ,01/06/2017,6099672,"2,364.00",Revenue,CRT03824,E R Hindmarch                           
Shropshire,00GG,Adult Social Care - Adults aged under 65 with learning disabilities,Third Party Payments - Private Contractors           ,01/06/2017,6099621,"13,026.33",Revenue,CRD74217,Derwen College                          
Shropshire,00GG,Adult Social Care - Adults aged under 65 with learning disabilities,Third Party Payments - Private Contractors           ,01/06/2017,6099622,"5,209.00",Revenue,CRD86030,Condover College Ltd                    
Shropshire,00GG,Adult Social Care - Adults aged under 65 with learning disabilities,Third Party Payments - Private Contractors           ,01/06/2017,6099673,"1,782.00",Revenue,CRD63868,Castlecare Residential Homes            
Shropshire,00GG,Adult Social Care - Adults aged under 65 with learning disabilities,Third Party Payments - Private Contractors           ,01/06/2017,6099674,"1,782.00",Revenue,CRD63868,Castlecare Residential Homes            
Shropshire,00GG,Adult Social Care - Adults aged under 65 with learning disabilities,Third Party Payments - Private Contractors           ,01/06/2017,6099652,"4,500.00",Revenue,CRD86030,Condover College Ltd                    
Shropshire,00GG,Adult Social Care - Adults aged under 65 with learning disabilities,Third Party Payments - Private Contractors           ,01/06/2017,6099659,"2,400.00",Revenue,CRD86030,Condover College Ltd                    
Shropshire,00GG,Adult Social Care - Adults aged under 65 with learning disabilities,Third Party Payments - Private Contractors           ,01/06/2017,6099661,"7,888.20",Revenue,CRD73282,Adelphi Care Services Limited           
Shropshire,00GG,Adult Social Care - Adults aged under 65 with learning disabilities,Third Party Payments - Private Contractors           ,01/06/2017,6099662,"7,888.20",Revenue,CRD73282,Adelphi Care Services Limited           
Shropshire,00GG,Adult Social Care - Adults aged under 65 with learning disabilities,Third Party Payments - Private Contractors           ,01/06/2017,6099663,"7,888.20",Revenue,CRD73282,Adelphi Care Services Limited           
Shropshire,00GG,Adult Social Care - Adults aged under 65 with learning disabilities,Third Party Payments - Private Contractors           ,01/06/2017,6099664,"7,885.80",Revenue,CRD73282,Adelphi Care Services Limited           
Shropshire,00GG,Adult Social Care - Adults aged under 65 with learning disabilities,Third Party Payments - Private Contractors           ,01/06/2017,6099656,855.00,Revenue,CRD86030,Condover College Ltd                    
Shropshire,00GG,Adult Social Care - Adults aged under 65 with learning disabilities,Third Party Payments - Private Contractors           ,01/06/2017,6099666,612.00,Revenue,CRD86030,Condover College Ltd                    
Shropshire,00GG,Adult Social Care - Adults aged under 65 with learning disabilities,Third Party Payments - Private Contractors           ,01/06/2017,6099657,"2,447.07",Revenue,CRD86030,Condover College Ltd                    
Shropshire,00GG,Adult Social Care - Adults aged under 65 with learning disabilities,Third Party Payments - Private Contractors           ,01/06/2017,6099658,"2,250.00",Revenue,CRD86030,Condover College Ltd                    
Shropshire,00GG,Adult Social Care - Adults aged under 65 with learning disabilities,Third Party Payments - Private Contractors           ,01/06/2017,6099653,527.10,Revenue,CRD86030,Condover College Ltd                    
Shropshire,00GG,Adult Social Care - Adults aged under 65 with learning disabilities,Third Party Payments - Private Contractors           ,01/06/2017,6099654,"3,000.00",Revenue,CRD86030,Condover College Ltd                    
Shropshire,00GG,Housing Services - Other Welfare Services,Supplies And Services - Miscellaneous Expenses        ,01/06/2017,6096739,"117,798.93",Revenue,GSP00021,Severnside Housing                      
Shropshire,00GG,Housing Services - Other Welfare Services,Supplies And Services - Miscellaneous Expenses        ,01/06/2017,6096777,"3,359.23",Revenue,GSP00028,South Shropshire Housing Assoc Ltd      
Shropshire,00GG,Housing Services - Other Welfare Services,Supplies And Services - Miscellaneous Expenses        ,01/06/2017,6096775,"1,680.25",Revenue,GSP00032,Transhouse (Oswestry) Ltd               
Shropshire,00GG,Children's and Education Services  - School and Pupil Support,Transport Related   - Contracts                     ,01/06/2017,6099845,"1,067.00",Revenue,CRD03156,Diamond Cars (Telford) Limited          
Shropshire,00GG,Children's and Education Services  - School and Pupil Support,Transport Related   - Contracts                     ,01/06/2017,6099847,495.00,Revenue,CRD03156,Diamond Cars (Telford) Limited          
Shropshire,00GG,Children's and Education Services  - School and Pupil Support,Transport Related   - Contracts                     ,01/06/2017,6099846,720.00,Revenue,CRD03156,Diamond Cars (Telford) Limited          
Shropshire,00GG,Children's and Education Services  - School and Pupil Support,Transport Related   - Contracts                     ,01/06/2017,6099849,"1,133.00",Revenue,CRD77164,Jeff'S Taxis & Minibuses                
Shropshire,00GG,Children's and Education Services  - School and Pupil Support,Transport Related   - Contracts                     ,01/06/2017,5868784,898.18,Revenue,TOP28992,Redacted - Personal Information
Shropshire,00GG,Children's and Education Services  - School and Pupil Support,Transport Related   - Contracts                     ,01/06/2017,5886629,"1,381.82",Revenue,TOP28995,Redacted - Personal Information
Shropshire,00GG,Children's and Education Services  - School and Pupil Support,Transport Related   - Contracts                     ,01/06/2017,5869175,500.90,Revenue,TOP28998,Redacted - Personal Information
Shropshire,00GG,Children's and Education Services  - School and Pupil Support,Transport Related   - Contracts                     ,01/06/2017,5869186,722.70,Revenue,TOP29106,Redacted - Personal Information
Shropshire,00GG,Children's and Education Services  - School and Pupil Support,Transport Related   - Contracts                     ,01/06/2017,5894198,906.81,Revenue,TOP29141,Redacted - Personal Information
Shropshire,00GG,Children's and Education Services  - School and Pupil Support,Transport Related   - Contracts                     ,01/06/2017,5868798,639.09,Revenue,TOP29339,Redacted - Personal Information
Shropshire,00GG,Children's and Education Services  - School and Pupil Support,Transport Related   - Contracts                     ,01/06/2017,6093731,690.91,Revenue,TOP29490,Redacted - Personal Information
Shropshire,00GG,Adult Social Care - Adults aged under 65 with learning disabilities,Transport Related   - Direct Transport Costs        ,01/06/2017,6099851,931.24,Revenue,CRD77164,Jeff'S Taxis & Minibuses                
Shropshire,00GG,Adult Social Care - Adults aged under 65 with learning disabilities,Transport Related   - Direct Transport Costs        ,01/06/2017,6099857,829.60,Revenue,CRD77164,Jeff'S Taxis & Minibuses                
Shropshire,00GG,Adult Social Care - Adults aged under 65 with learning disabilities,Transport Related   - Direct Transport Costs        ,01/06/2017,6099843,"1,000.00",Revenue,CRD90218,Mohammad Khan                           
Shropshire,00GG,Adult Social Care - Adults aged under 65 with learning disabilities,Transport Related   - Direct Transport Costs        ,01/06/2017,6099844,905.00,Revenue,CRD77164,Jeff'S Taxis & Minibuses                
Shropshire,00GG,"Cultural, Environmental, Regulatory and Planning Services  - Economic Development",Supplies And Services - Grants & Subscriptions        ,01/06/2017,6099807,"1,200.00",Revenue,CRT01932,Shrewsbury Business Improvement Dist Ltd
Shropshire,00GG,None SeRCOP - Capital,Contingency/Other Capital - Capital - Construction/Conver ,01/06/2017,6098839,"1,136.25",Capital,CRD81894,Robert Pinches                          
Shropshire,00GG,None SeRCOP - Capital,Contingency/Other Capital - Capital - Exp On Grants & Loan,01/06/2017,6099689,"2,760.28",Capital,TOP29063,W S Building Services (Shropshire) Ltd  
Shropshire,00GG,None SeRCOP - Capital,Contingency/Other Capital - Capital - Construction/Conver ,01/06/2017,6096564,"26,998.16",Capital,CRT00039,Shropshire Towns & Rural Housing Ltd    
Shropshire,00GG,None SeRCOP - Capital,Contingency/Other Capital - Capital - Construction/Conver ,01/06/2017,6096564,"14,890.87",Capital,CRT00039,Shropshire Towns & Rural Housing Ltd    
Shropshire,00GG,None SeRCOP - Capital,Contingency/Other Capital - Capital - Construction/Conver ,01/06/2017,6096367,"11,405.00",Capital,CRT00039,Shropshire Towns & Rural Housing Ltd    
Shropshire,00GG,None SeRCOP - Capital,Contingency/Other Capital - Capital - Construction/Conver ,01/06/2017,6096564,"24,307.66",Capital,CRT00039,Shropshire Towns & Rural Housing Ltd    
Shropshire,00GG,None SeRCOP - Capital,Contingency/Other Capital - Capital - Construction/Conver ,01/06/2017,6096367,410.00,Capital,CRT00039,Shropshire Towns & Rural Housing Ltd    
Shropshire,00GG,None SeRCOP - Capital,Contingency/Other Capital - Capital - Construction/Conver ,01/06/2017,6096564,"6,000.99",Capital,CRT00039,Shropshire Towns & Rural Housing Ltd    
Shropshire,00GG,None SeRCOP - Capital,Contingency/Other Capital - Capital - Construction/Conver ,01/06/2017,6096367,"17,172.91",Capital,CRT00039,Shropshire Towns & Rural Housing Ltd    
Shropshire,00GG,None SeRCOP - Capital,Contingency/Other Capital - Capital - Construction/Conver ,01/06/2017,6096564,140.00,Capital,CRT00039,Shropshire Towns & Rural Housing Ltd    
Shropshire,00GG,None SeRCOP - Capital,Contingency/Other Capital - Capital - Professional Fees   ,01/06/2017,6096367,"1,047.00",Capital,CRT00039,Shropshire Towns & Rural Housing Ltd    
Shropshire,00GG,None SeRCOP - Capital,Contingency/Other Capital - Capital - Construction/Conver ,01/06/2017,6095813,"173,480.68",Capital,CRD81723,Alun Griffiths (Contractor) Ltd         
Shropshire,00GG,None SeRCOP - Capital,Contingency/Other Capital - Capital - Professional Fees   ,01/06/2017,6095812,"9,316.00",Capital,CRD98536,Uk Flood Barriers                       
Shropshire,00GG,None SeRCOP - Capital,Contingency/Other Capital - Capital - Exp On Grants & Loan,01/06/2017,6096334,"30,000.00",Capital,CRD90628,The Wrekin Housing Trust Ltd            
Shropshire,00GG,None SeRCOP - Capital,Contingency/Other Capital - Capital - Construction/Conver ,01/06/2017,6090906,"12,000.00",Capital,CRD03768,R G Edwards & Co Ltd                    
Shropshire,00GG,None SeRCOP - Capital,Contingency/Other Capital - Capital - Exp On Grants & Loan,01/06/2017,6096333,"3,941.04",Capital,TOP29519,Redacted - Personal Information
Shropshire,00GG,None SeRCOP - Capital,Contingency/Other Capital - Capital - Construction/Conver ,01/06/2017,6096564,"16,815.00",Capital,CRT00039,Shropshire Towns & Rural Housing Ltd    
Shropshire,00GG,None SeRCOP - Capital,Contingency/Other Capital - Capital - Construction/Conver ,01/06/2017,6096564,"17,728.81",Capital,CRT00039,Shropshire Towns & Rural Housing Ltd    
Shropshire,00GG,None SeRCOP - Capital,Contingency/Other Capital - Capital - Construction/Conver ,01/06/2017,6096367,"34,971.17",Capital,CRT00039,Shropshire Towns & Rural Housing Ltd    
Shropshire,00GG,None SeRCOP - Capital,Contingency/Other Capital - Capital - Professional Fees   ,01/06/2017,6096564,"5,475.00",Capital,CRT00039,Shropshire Towns & Rural Housing Ltd    
Shropshire,00GG,None SeRCOP - Capital,Contingency/Other Capital - Capital - Construction/Conver ,01/06/2017,6096564,"2,009.15",Capital,CRT00039,Shropshire Towns & Rural Housing Ltd    
Shropshire,00GG,None SeRCOP - Capital,Contingency/Other Capital - Capital - Professional Fees   ,01/06/2017,6096367,"1,025.00",Capital,CRT00039,Shropshire Towns & Rural Housing Ltd    
Shropshire,00GG,None SeRCOP - Capital,Contingency/Other Capital - Capital - Professional Fees   ,01/06/2017,6096367,906.00,Capital,CRT00039,Shropshire Towns & Rural Housing Ltd    
Shropshire,00GG,None SeRCOP - Capital,Contingency/Other Capital - Capital - Professional Fees   ,01/06/2017,6096367,"2,570.00",Capital,CRT00039,Shropshire Towns & Rural Housing Ltd    
Shropshire,00GG,Central Services - Trading Services,Supplies And Services - Communications & Computing    ,01/06/2017,6096599,"16,662.00",Revenue,CRD99297,Crowd Technologies Limited              
Shropshire,00GG,Central Services - Coroners' Court Services,Supplies And Services - Miscellaneous Expenses        ,01/06/2017,6091866,"3,430.00",Revenue,CRT05194,Forensics Ltd                           
Shropshire,00GG,Central Services - Coroners' Court Services,Supplies And Services - Miscellaneous Expenses        ,01/06/2017,6091866,"1,820.00",Revenue,CRT05194,Forensics Ltd                           
Shropshire,00GG,Central Services - Trading undertakings,Supplies And Services - Miscellaneous Expenses        ,02/06/2017,6086305,10.00,Revenue,CRD79352,Security Plus + Limited                 
Shropshire,00GG,Central Services - Trading undertakings,Supplies And Services - Miscellaneous Expenses        ,02/06/2017,6086305,10.00,Revenue,CRD79352,Security Plus + Limited                 
Shropshire,00GG,Central Services - Trading undertakings,Supplies And Services - Miscellaneous Expenses        ,02/06/2017,6086305,10.00,Revenue,CRD79352,Security Plus + Limited                 
Shropshire,00GG,Central Services - Trading undertakings,Supplies And Services - Miscellaneous Expenses        ,02/06/2017,6086305,10.00,Revenue,CRD79352,Security Plus + Limited                 
Shropshire,00GG,Central Services - Trading undertakings,Supplies And Services - Miscellaneous Expenses        ,02/06/2017,6086305,10.00,Revenue,CRD79352,Security Plus + Limited                 
Shropshire,00GG,Central Services - Trading undertakings,Supplies And Services - Miscellaneous Expenses        ,02/06/2017,6086305,20.00,Revenue,CRD79352,Security Plus + Limited                 
Shropshire,00GG,Central Services - Trading undertakings,Supplies And Services - Miscellaneous Expenses        ,02/06/2017,6086305,20.00,Revenue,CRD79352,Security Plus + Limited                 
Shropshire,00GG,Central Services - Trading undertakings,Supplies And Services - Catering                      ,02/06/2017,6100988,557.74,Revenue,CRD76838,Bidfood                                 
Shropshire,00GG,Central Services - Trading undertakings,Supplies And Services - Miscellaneous Expenses        ,02/06/2017,6086305,20.00,Revenue,CRD79352,Security Plus + Limited                 
Shropshire,00GG,Central Services - Trading undertakings,Supplies And Services - Miscellaneous Expenses        ,02/06/2017,6086305,10.00,Revenue,CRD79352,Security Plus + Limited                 
Shropshire,00GG,Central Services - Trading undertakings,Supplies And Services - Miscellaneous Expenses        ,02/06/2017,6086305,20.00,Revenue,CRD79352,Security Plus + Limited                 
Shropshire,00GG,Central Services - Trading undertakings,Supplies And Services - Miscellaneous Expenses        ,02/06/2017,6086305,20.00,Revenue,CRD79352,Security Plus + Limited                 
Shropshire,00GG,Central Services - Trading undertakings,Supplies And Services - Miscellaneous Expenses        ,02/06/2017,6086305,10.00,Revenue,CRD79352,Security Plus + Limited                 
Shropshire,00GG,Central Services - Trading undertakings,Supplies And Services - Miscellaneous Expenses        ,02/06/2017,6086305,20.00,Revenue,CRD79352,Security Plus + Limited                 
Shropshire,00GG,Central Services - Trading undertakings,Supplies And Services - Catering                      ,02/06/2017,6101026,12.20,Revenue,CRD76838,Bidfood                                 
Shropshire,00GG,Central Services - Trading undertakings,Supplies And Services - Catering                      ,02/06/2017,6101026,539.47,Revenue,CRD76838,Bidfood                                 
Shropshire,00GG,Central Services - Trading undertakings,Supplies And Services - Miscellaneous Expenses        ,02/06/2017,6086305,10.00,Revenue,CRD79352,Security Plus + Limited                 
Shropshire,00GG,Central Services - Trading undertakings,Supplies And Services - Miscellaneous Expenses        ,02/06/2017,6086305,10.00,Revenue,CRD79352,Security Plus + Limited                 
Shropshire,00GG,Central Services - Trading undertakings,Supplies And Services - Miscellaneous Expenses        ,02/06/2017,6086305,10.00,Revenue,CRD79352,Security Plus + Limited                 
Shropshire,00GG,Central Services - Trading undertakings,Supplies And Services - Miscellaneous Expenses        ,02/06/2017,6086305,10.00,Revenue,CRD79352,Security Plus + Limited                 
Shropshire,00GG,Central Services - Trading undertakings,Supplies And Services - Miscellaneous Expenses        ,02/06/2017,6086305,20.00,Revenue,CRD79352,Security Plus + Limited                 
Shropshire,00GG,Central Services - Trading undertakings,Supplies And Services - Miscellaneous Expenses        ,02/06/2017,6086305,10.00,Revenue,CRD79352,Security Plus + Limited                 
Shropshire,00GG,Central Services - Trading undertakings,Supplies And Services - Miscellaneous Expenses        ,02/06/2017,6086305,10.00,Revenue,CRD79352,Security Plus + Limited                 
Shropshire,00GG,Central Services - Trading undertakings,Supplies And Services - Miscellaneous Expenses        ,02/06/2017,6086305,10.00,Revenue,CRD79352,Security Plus + Limited                 
Shropshire,00GG,Central Services - Trading undertakings,Supplies And Services - Miscellaneous Expenses        ,02/06/2017,6086305,10.00,Revenue,CRD79352,Security Plus + Limited                 
Shropshire,00GG,Central Services - Trading undertakings,Supplies And Services - Miscellaneous Expenses        ,02/06/2017,6086305,10.00,Revenue,CRD79352,Security Plus + Limited                 
Shropshire,00GG,Central Services - Trading undertakings,Supplies And Services - Miscellaneous Expenses        ,02/06/2017,6086305,10.00,Revenue,CRD79352,Security Plus + Limited                 
Shropshire,00GG,Central Services - Trading undertakings,Supplies And Services - Miscellaneous Expenses        ,02/06/2017,6086305,10.00,Revenue,CRD79352,Security Plus + Limited                 
Shropshire,00GG,Central Services - Trading undertakings,Supplies And Services - Catering                      ,02/06/2017,6100899,514.68,Revenue,CRD76838,Bidfood                                 
Shropshire,00GG,Central Services - Trading undertakings,Supplies And Services - Miscellaneous Expenses        ,02/06/2017,6086305,10.00,Revenue,CRD79352,Security Plus + Limited                 
Shropshire,00GG,Central Services - Trading undertakings,Supplies And Services - Miscellaneous Expenses        ,02/06/2017,6086305,10.00,Revenue,CRD79352,Security Plus + Limited                 
Shropshire,00GG,Central Services - Trading undertakings,Supplies And Services - Miscellaneous Expenses        ,02/06/2017,6086305,20.00,Revenue,CRD79352,Security Plus + Limited                 
Shropshire,00GG,Central Services - Trading undertakings,Supplies And Services - Miscellaneous Expenses        ,02/06/2017,6086305,10.00,Revenue,CRD79352,Security Plus + Limited                 
Shropshire,00GG,Central Services - Trading undertakings,Supplies And Services - Miscellaneous Expenses        ,02/06/2017,6086305,20.00,Revenue,CRD79352,Security Plus + Limited                 
Shropshire,00GG,Central Services - Trading undertakings,Supplies And Services - Miscellaneous Expenses        ,02/06/2017,6086305,20.00,Revenue,CRD79352,Security Plus + Limited                 
Shropshire,00GG,Central Services - Trading undertakings,Supplies And Services - Miscellaneous Expenses        ,02/06/2017,6086305,20.00,Revenue,CRD79352,Security Plus + Limited                 
Shropshire,00GG,Central Services - Trading undertakings,Supplies And Services - Miscellaneous Expenses        ,02/06/2017,6086305,10.00,Revenue,CRD79352,Security Plus + Limited                 
Shropshire,00GG,Central Services - Trading undertakings,Supplies And Services - Miscellaneous Expenses        ,02/06/2017,6086305,10.00,Revenue,CRD79352,Security Plus + Limited                 
Shropshire,00GG,Central Services - Trading undertakings,Supplies And Services - Miscellaneous Expenses        ,02/06/2017,6086305,10.00,Revenue,CRD79352,Security Plus + Limited                 
Shropshire,00GG,Central Services - Trading undertakings,Supplies And Services - Miscellaneous Expenses        ,02/06/2017,6086305,10.00,Revenue,CRD79352,Security Plus + Limited                 
Shropshire,00GG,Central Services - Trading undertakings,Supplies And Services - Miscellaneous Expenses        ,02/06/2017,6086305,10.00,Revenue,CRD79352,Security Plus + Limited                 
Shropshire,00GG,Central Services - Trading undertakings,Supplies And Services - Miscellaneous Expenses        ,02/06/2017,6086305,10.00,Revenue,CRD79352,Security Plus + Limited                 
Shropshire,00GG,Central Services - Trading undertakings,Supplies And Services - Miscellaneous Expenses        ,02/06/2017,6086305,20.00,Revenue,CRD79352,Security Plus + Limited                 
Shropshire,00GG,Central Services - Trading undertakings,Supplies And Services - Catering                      ,02/06/2017,6101019,517.76,Revenue,CRD76838,Bidfood                                 
Shropshire,00GG,Central Services - Trading undertakings,Supplies And Services - Miscellaneous Expenses        ,02/06/2017,6086305,30.00,Revenue,CRD79352,Security Plus + Limited                 
Shropshire,00GG,Central Services - Trading undertakings,Supplies And Services - Catering                      ,02/06/2017,6100968,575.53,Revenue,CRD76838,Bidfood                                 
Shropshire,00GG,Central Services - Trading undertakings,Supplies And Services - Miscellaneous Expenses        ,02/06/2017,6086305,20.00,Revenue,CRD79352,Security Plus + Limited                 
Shropshire,00GG,Central Services - Trading undertakings,Supplies And Services - Catering                      ,02/06/2017,6100965,"1,192.93",Revenue,CRD76838,Bidfood                                 
Shropshire,00GG,Central Services - Trading undertakings,Supplies And Services - Miscellaneous Expenses        ,02/06/2017,6086305,20.00,Revenue,CRD79352,Security Plus + Limited                 
Shropshire,00GG,Central Services - Trading undertakings,Supplies And Services - Clothing Uniform & Laundry    ,02/06/2017,6096762,65.45,Revenue,CRD86530,Image@Work                              
Shropshire,00GG,Central Services - Trading undertakings,Supplies And Services - Catering                      ,02/06/2017,6100918,34.12,Revenue,CRD76838,Bidfood                                 
Shropshire,00GG,Central Services - Trading undertakings,Supplies And Services - Catering                      ,02/06/2017,6100918,954.82,Revenue,CRD76838,Bidfood                                 
Shropshire,00GG,Central Services - Trading undertakings,Supplies And Services - Catering                      ,02/06/2017,6100999,30.54,Revenue,CRD76838,Bidfood                                 
Shropshire,00GG,Central Services - Trading undertakings,Supplies And Services - Catering                      ,02/06/2017,6100999,968.06,Revenue,CRD76838,Bidfood                                 
Shropshire,00GG,Central Services - Trading undertakings,Supplies And Services - Miscellaneous Expenses        ,02/06/2017,6086305,40.00,Revenue,CRD79352,Security Plus + Limited                 
Shropshire,00GG,Central Services - Trading undertakings,Supplies And Services - Miscellaneous Expenses        ,02/06/2017,6086305,40.00,Revenue,CRD79352,Security Plus + Limited                 
Shropshire,00GG,Central Services - Trading undertakings,Supplies And Services - Catering                      ,02/06/2017,6101035,49.16,Revenue,CRD76838,Bidfood                                 
Shropshire,00GG,Central Services - Trading undertakings,Supplies And Services - Catering                      ,02/06/2017,6101035,473.53,Revenue,CRD76838,Bidfood                                 
Shropshire,00GG,Central Services - Trading undertakings,Supplies And Services - Miscellaneous Expenses        ,02/06/2017,6086305,20.00,Revenue,CRD79352,Security Plus + Limited                 
Shropshire,00GG,Central Services - Trading undertakings,Supplies And Services - Catering                      ,02/06/2017,6100997,530.50,Revenue,CRD76838,Bidfood                                 
Shropshire,00GG,Central Services - Trading undertakings,Supplies And Services - Miscellaneous Expenses        ,02/06/2017,6086305,20.00,Revenue,CRD79352,Security Plus + Limited                 
Shropshire,00GG,Central Services - Trading undertakings,Supplies And Services - Miscellaneous Expenses        ,02/06/2017,6086305,10.00,Revenue,CRD79352,Security Plus + Limited                 
Shropshire,00GG,Central Services - Trading undertakings,Supplies And Services - Miscellaneous Expenses        ,02/06/2017,6086305,20.00,Revenue,CRD79352,Security Plus + Limited                 
Shropshire,00GG,Central Services - Trading undertakings,Supplies And Services - Miscellaneous Expenses        ,02/06/2017,6086305,20.00,Revenue,CRD79352,Security Plus + Limited                 
Shropshire,00GG,Central Services - Trading undertakings,Supplies And Services - Catering                      ,02/06/2017,6100931,591.81,Revenue,CRD76838,Bidfood                                 
Shropshire,00GG,Central Services - Trading undertakings,Supplies And Services - Catering                      ,02/06/2017,6101029,14.92,Revenue,CRD76838,Bidfood                                 
Shropshire,00GG,Central Services - Trading undertakings,Supplies And Services - Catering                      ,02/06/2017,6101029,509.89,Revenue,CRD76838,Bidfood                                 
Shropshire,00GG,Central Services - Trading undertakings,Supplies And Services - Miscellaneous Expenses        ,02/06/2017,6086305,20.00,Revenue,CRD79352,Security Plus + Limited                 
Shropshire,00GG,Central Services - Trading undertakings,Supplies And Services - Miscellaneous Expenses        ,02/06/2017,6086305,10.00,Revenue,CRD79352,Security Plus + Limited                 
Shropshire,00GG,Central Services - Trading undertakings,Supplies And Services - Catering                      ,02/06/2017,6101023,21.76,Revenue,CRD76838,Bidfood                                 
Shropshire,00GG,Central Services - Trading undertakings,Supplies And Services - Catering                      ,02/06/2017,6101023,674.74,Revenue,CRD76838,Bidfood                                 
Shropshire,00GG,Central Services - Trading undertakings,Supplies And Services - Miscellaneous Expenses        ,02/06/2017,6086305,20.00,Revenue,CRD79352,Security Plus + Limited                 
Shropshire,00GG,Central Services - Trading undertakings,Supplies And Services - Catering                      ,02/06/2017,6101031,25.54,Revenue,CRD76838,Bidfood                                 
Shropshire,00GG,Central Services - Trading undertakings,Supplies And Services - Catering                      ,02/06/2017,6101031,827.49,Revenue,CRD76838,Bidfood                                 
Shropshire,00GG,Central Services - Trading undertakings,Supplies And Services - Catering                      ,02/06/2017,6100982,25.50,Revenue,CRD76838,Bidfood                                 
Shropshire,00GG,Central Services - Trading undertakings,Supplies And Services - Catering                      ,02/06/2017,6100982,699.07,Revenue,CRD76838,Bidfood                                 
Shropshire,00GG,Central Services - Trading undertakings,Supplies And Services - Catering                      ,02/06/2017,6101050,12.76,Revenue,CRD76838,Bidfood                                 
Shropshire,00GG,Central Services - Trading undertakings,Supplies And Services - Catering                      ,02/06/2017,6101050,555.88,Revenue,CRD76838,Bidfood                                 
Shropshire,00GG,Central Services - Trading undertakings,Supplies And Services - Miscellaneous Expenses        ,02/06/2017,6086305,10.00,Revenue,CRD79352,Security Plus + Limited                 
Shropshire,00GG,Central Services - Trading undertakings,Supplies And Services - Miscellaneous Expenses        ,02/06/2017,6086305,20.00,Revenue,CRD79352,Security Plus + Limited                 
Shropshire,00GG,Central Services - Trading undertakings,Supplies And Services - Miscellaneous Expenses        ,02/06/2017,6086305,20.00,Revenue,CRD79352,Security Plus + Limited                 
Shropshire,00GG,Central Services - Trading undertakings,Supplies And Services - Miscellaneous Expenses        ,02/06/2017,6088316,600.00,Revenue,CRT00806,Matchborough First School Academy       
Shropshire,00GG,Central Services - Trading undertakings,Supplies And Services - Miscellaneous Expenses        ,02/06/2017,6086305,10.00,Revenue,CRD79352,Security Plus + Limited                 
Shropshire,00GG,Central Services - Trading undertakings,Supplies And Services - Catering                      ,02/06/2017,6100970,44.76,Revenue,CRD76838,Bidfood                                 
Shropshire,00GG,Central Services - Trading undertakings,Supplies And Services - Catering                      ,02/06/2017,6100970,"1,572.49",Revenue,CRD76838,Bidfood                                 
Shropshire,00GG,Central Services - Trading undertakings,Supplies And Services - Catering                      ,02/06/2017,6101043,44.76,Revenue,CRD76838,Bidfood                                 
Shropshire,00GG,Central Services - Trading undertakings,Supplies And Services - Catering                      ,02/06/2017,6101043,668.48,Revenue,CRD76838,Bidfood                                 
Shropshire,00GG,Central Services - Trading undertakings,Supplies And Services - Miscellaneous Expenses        ,02/06/2017,6086305,40.00,Revenue,CRD79352,Security Plus + Limited                 
Shropshire,00GG,Central Services - Trading undertakings,Supplies And Services - Clothing Uniform & Laundry    ,02/06/2017,6096762,20.90,Revenue,CRD86530,Image@Work                              
Shropshire,00GG,Central Services - Trading undertakings,Supplies And Services - Catering                      ,02/06/2017,6100944,42.72,Revenue,CRD76838,Bidfood                                 
Shropshire,00GG,Central Services - Trading undertakings,Supplies And Services - Catering                      ,02/06/2017,6100944,505.53,Revenue,CRD76838,Bidfood                                 
Shropshire,00GG,Central Services - Trading undertakings,Supplies And Services - Miscellaneous Expenses        ,02/06/2017,6086305,40.00,Revenue,CRD79352,Security Plus + Limited                 
Shropshire,00GG,Central Services - Trading undertakings,Supplies And Services - Miscellaneous Expenses        ,02/06/2017,6086305,40.00,Revenue,CRD79352,Security Plus + Limited                 
Shropshire,00GG,Central Services - Trading undertakings,Supplies And Services - Catering                      ,02/06/2017,6100934,16.60,Revenue,CRD76838,Bidfood                                 
Shropshire,00GG,Central Services - Trading undertakings,Supplies And Services - Catering                      ,02/06/2017,6100934,489.25,Revenue,CRD76838,Bidfood                                 
Shropshire,00GG,Central Services - Trading undertakings,Supplies And Services - Equipt.  Furn. & Materials    ,02/06/2017,6088454,"1,883.00",Revenue,CRD77829,Abraxas Catering Equipment Ltd          
Shropshire,00GG,Central Services - Trading undertakings,Supplies And Services - Equipt.  Furn. & Materials    ,02/06/2017,6088453,490.00,Revenue,CRD77829,Abraxas Catering Equipment Ltd          
Shropshire,00GG,Central Services - Trading undertakings,Supplies And Services - Miscellaneous Expenses        ,02/06/2017,6086305,20.00,Revenue,CRD79352,Security Plus + Limited                 
Shropshire,00GG,Central Services - Trading undertakings,Supplies And Services - Clothing Uniform & Laundry    ,02/06/2017,6096762,80.30,Revenue,CRD86530,Image@Work                              
Shropshire,00GG,Central Services - Trading undertakings,Supplies And Services - Miscellaneous Expenses        ,02/06/2017,6086305,20.00,Revenue,CRD79352,Security Plus + Limited                 
Shropshire,00GG,Central Services - Trading undertakings,Supplies And Services - Miscellaneous Expenses        ,02/06/2017,6086305,20.00,Revenue,CRD79352,Security Plus + Limited                 
Shropshire,00GG,Central Services - Trading undertakings,Supplies And Services - Catering                      ,02/06/2017,6100935,641.92,Revenue,CRD76838,Bidfood                                 
Shropshire,00GG,Central Services - Trading undertakings,Supplies And Services - Catering                      ,02/06/2017,6101012,41.69,Revenue,CRD76838,Bidfood                                 
Shropshire,00GG,Central Services - Trading undertakings,Supplies And Services - Catering                      ,02/06/2017,6101012,796.39,Revenue,CRD76838,Bidfood                                 
Shropshire,00GG,Central Services - Trading undertakings,Supplies And Services - Miscellaneous Expenses        ,02/06/2017,6086305,40.00,Revenue,CRD79352,Security Plus + Limited                 
Shropshire,00GG,Central Services - Trading undertakings,Supplies And Services - Catering                      ,02/06/2017,6100974,33.74,Revenue,CRD76838,Bidfood                                 
Shropshire,00GG,Central Services - Trading undertakings,Supplies And Services - Catering                      ,02/06/2017,6100974,"1,063.04",Revenue,CRD76838,Bidfood                                 
Shropshire,00GG,Central Services - Trading undertakings,Supplies And Services - Catering                      ,02/06/2017,6101041,13.88,Revenue,CRD76838,Bidfood                                 
Shropshire,00GG,Central Services - Trading undertakings,Supplies And Services - Catering                      ,02/06/2017,6101041,563.92,Revenue,CRD76838,Bidfood                                 
Shropshire,00GG,Central Services - Trading undertakings,Supplies And Services - Miscellaneous Expenses        ,02/06/2017,6086305,20.00,Revenue,CRD79352,Security Plus + Limited                 
Shropshire,00GG,Central Services - Trading undertakings,Supplies And Services - Catering                      ,02/06/2017,6100895,41.69,Revenue,CRD76838,Bidfood                                 
Shropshire,00GG,Central Services - Trading undertakings,Supplies And Services - Catering                      ,02/06/2017,6100895,968.87,Revenue,CRD76838,Bidfood                                 
Shropshire,00GG,Central Services - Trading undertakings,Supplies And Services - Catering                      ,02/06/2017,6101022,36.04,Revenue,CRD76838,Bidfood                                 
Shropshire,00GG,Central Services - Trading undertakings,Supplies And Services - Catering                      ,02/06/2017,6101022,554.44,Revenue,CRD76838,Bidfood                                 
Shropshire,00GG,Central Services - Trading undertakings,Supplies And Services - Miscellaneous Expenses        ,02/06/2017,6086305,40.00,Revenue,CRD79352,Security Plus + Limited                 
Shropshire,00GG,Central Services - Trading undertakings,Supplies And Services - Catering                      ,02/06/2017,6086508,501.35,Revenue,CRD56917,The Little Food Company Limited         
Shropshire,00GG,Central Services - Trading undertakings,Supplies And Services - Catering                      ,02/06/2017,6100908,767.28,Revenue,CRD76838,Bidfood                                 
Shropshire,00GG,Central Services - Trading undertakings,Supplies And Services - Catering                      ,02/06/2017,6101030,698.54,Revenue,CRD76838,Bidfood                                 
Shropshire,00GG,Central Services - Trading undertakings,Supplies And Services - Miscellaneous Expenses        ,02/06/2017,6086305,40.00,Revenue,CRD79352,Security Plus + Limited                 
Shropshire,00GG,Central Services - Trading undertakings,Supplies And Services - Miscellaneous Expenses        ,02/06/2017,6086305,20.00,Revenue,CRD79352,Security Plus + Limited                 
Shropshire,00GG,Central Services - Trading undertakings,Supplies And Services - Catering                      ,02/06/2017,6100932,51.36,Revenue,CRD76838,Bidfood                                 
Shropshire,00GG,Central Services - Trading undertakings,Supplies And Services - Catering                      ,02/06/2017,6100932,530.58,Revenue,CRD76838,Bidfood                                 
Shropshire,00GG,Central Services - Trading undertakings,Supplies And Services - Catering                      ,02/06/2017,6101014,555.02,Revenue,CRD76838,Bidfood                                 
Shropshire,00GG,Central Services - Trading undertakings,Supplies And Services - Catering                      ,02/06/2017,6100971,41.69,Revenue,CRD76838,Bidfood                                 
Shropshire,00GG,Central Services - Trading undertakings,Supplies And Services - Catering                      ,02/06/2017,6100971,"1,081.95",Revenue,CRD76838,Bidfood                                 
Shropshire,00GG,Central Services - Trading undertakings,Supplies And Services - Catering                      ,02/06/2017,6101042,734.79,Revenue,CRD76838,Bidfood                                 
Shropshire,00GG,Central Services - Trading undertakings,Supplies And Services - Miscellaneous Expenses        ,02/06/2017,6086305,40.00,Revenue,CRD79352,Security Plus + Limited                 
Shropshire,00GG,Central Services - Trading undertakings,Supplies And Services - Miscellaneous Expenses        ,02/06/2017,6086305,40.00,Revenue,CRD79352,Security Plus + Limited                 
Shropshire,00GG,Central Services - Trading undertakings,Supplies And Services - Clothing Uniform & Laundry    ,02/06/2017,6096762,649.95,Revenue,CRD86530,Image@Work                              
Shropshire,00GG,Central Services - Trading undertakings,Supplies And Services - Miscellaneous Expenses        ,02/06/2017,6091890,829.99,Revenue,CRD79352,Security Plus + Limited                 
Shropshire,00GG,Central Services - Trading undertakings,Supplies And Services - Miscellaneous Expenses        ,02/06/2017,6083137,845.00,Revenue,CRD92272,Millstream Associates Limited           
Shropshire,00GG,Central Services - Trading undertakings,Supplies And Services - Miscellaneous Expenses        ,02/06/2017,6086305,20.00,Revenue,CRD79352,Security Plus + Limited                 
Shropshire,00GG,Central Services - Trading undertakings,Supplies And Services - Catering                      ,02/06/2017,6100960,2.35,Revenue,CRD76838,Bidfood                                 
Shropshire,00GG,Central Services - Trading undertakings,Supplies And Services - Catering                      ,02/06/2017,6100960,842.31,Revenue,CRD76838,Bidfood                                 
Shropshire,00GG,Central Services - Trading undertakings,Supplies And Services - Miscellaneous Expenses        ,02/06/2017,6086305,20.00,Revenue,CRD79352,Security Plus + Limited                 
Shropshire,00GG,Central Services - Trading undertakings,Supplies And Services - Miscellaneous Expenses        ,02/06/2017,6086305,20.00,Revenue,CRD79352,Security Plus + Limited                 
Shropshire,00GG,Central Services - Trading undertakings,Supplies And Services - Clothing Uniform & Laundry    ,02/06/2017,6096762,20.90,Revenue,CRD86530,Image@Work                              
Shropshire,00GG,Central Services - Trading undertakings,Supplies And Services - Catering                      ,02/06/2017,6100975,34.78,Revenue,CRD76838,Bidfood                                 
Shropshire,00GG,Central Services - Trading undertakings,Supplies And Services - Catering                      ,02/06/2017,6100975,"1,218.07",Revenue,CRD76838,Bidfood                                 
Shropshire,00GG,Central Services - Trading undertakings,Supplies And Services - Miscellaneous Expenses        ,02/06/2017,6086305,20.00,Revenue,CRD79352,Security Plus + Limited                 
Shropshire,00GG,Central Services - Trading undertakings,Supplies And Services - Miscellaneous Expenses        ,02/06/2017,6086305,10.00,Revenue,CRD79352,Security Plus + Limited                 
Shropshire,00GG,Central Services - Trading undertakings,Supplies And Services - Catering                      ,02/06/2017,6100962,71.14,Revenue,CRD76838,Bidfood                                 
Shropshire,00GG,Central Services - Trading undertakings,Supplies And Services - Catering                      ,02/06/2017,6100962,453.10,Revenue,CRD76838,Bidfood                                 
Shropshire,00GG,Central Services - Trading undertakings,Supplies And Services - Catering                      ,02/06/2017,6101038,33.78,Revenue,CRD76838,Bidfood                                 
Shropshire,00GG,Central Services - Trading undertakings,Supplies And Services - Catering                      ,02/06/2017,6101038,510.56,Revenue,CRD76838,Bidfood                                 
Shropshire,00GG,Central Services - Trading undertakings,Supplies And Services - Miscellaneous Expenses        ,02/06/2017,6086305,20.00,Revenue,CRD79352,Security Plus + Limited                 
Shropshire,00GG,Central Services - Trading undertakings,Supplies And Services - Miscellaneous Expenses        ,02/06/2017,6086305,30.00,Revenue,CRD79352,Security Plus + Limited                 
Shropshire,00GG,Central Services - Trading Services,Supplies And Services - Miscellaneous Expenses        ,02/06/2017,6086305,16.00,Revenue,CRD79352,Security Plus + Limited                 
Shropshire,00GG,Central Services - Trading Services,Supplies And Services - Catering                      ,02/06/2017,6100930,16.60,Revenue,CRD76838,Bidfood                                 
Shropshire,00GG,Central Services - Trading Services,Supplies And Services - Catering                      ,02/06/2017,6100930,936.78,Revenue,CRD76838,Bidfood                                 
Shropshire,00GG,Central Services - Trading Services,Supplies And Services - Catering                      ,02/06/2017,6101002,8.30,Revenue,CRD76838,Bidfood                                 
Shropshire,00GG,Central Services - Trading Services,Supplies And Services - Catering                      ,02/06/2017,6101002,934.58,Revenue,CRD76838,Bidfood                                 
Shropshire,00GG,Central Services - Trading Services,Supplies And Services - Miscellaneous Expenses        ,02/06/2017,6086305,20.00,Revenue,CRD79352,Security Plus + Limited                 
Shropshire,00GG,Central Services - Trading Services,Supplies And Services - Miscellaneous Expenses        ,02/06/2017,6086305,20.00,Revenue,CRD79352,Security Plus + Limited                 
Shropshire,00GG,Central Services - Trading Services,Supplies And Services - Catering                      ,02/06/2017,6100976,65.28,Revenue,CRD76838,Bidfood                                 
Shropshire,00GG,Central Services - Trading Services,Supplies And Services - Catering                      ,02/06/2017,6100976,530.49,Revenue,CRD76838,Bidfood                                 
Shropshire,00GG,Central Services - Trading Services,Supplies And Services - Miscellaneous Expenses        ,02/06/2017,6086305,20.00,Revenue,CRD79352,Security Plus + Limited                 
Shropshire,00GG,Central Services - Trading Services,Supplies And Services - Miscellaneous Expenses        ,02/06/2017,6086305,20.00,Revenue,CRD79352,Security Plus + Limited                 
Shropshire,00GG,Central Services - Trading Services,Supplies And Services - Miscellaneous Expenses        ,02/06/2017,6086305,20.00,Revenue,CRD79352,Security Plus + Limited                 
Shropshire,00GG,Central Services - Trading Services,Supplies And Services - Miscellaneous Expenses        ,02/06/2017,6086305,20.00,Revenue,CRD79352,Security Plus + Limited                 
Shropshire,00GG,Central Services - Trading Services,Supplies And Services - Miscellaneous Expenses        ,02/06/2017,6086305,20.00,Revenue,CRD79352,Security Plus + Limited                 
Shropshire,00GG,Central Services - Trading Services,Supplies And Services - Miscellaneous Expenses        ,02/06/2017,6086305,20.00,Revenue,CRD79352,Security Plus + Limited                 
Shropshire,00GG,Central Services - Trading Services,Supplies And Services - Miscellaneous Expenses        ,02/06/2017,6086305,20.00,Revenue,CRD79352,Security Plus + Limited                 
Shropshire,00GG,Central Services - Trading Services,Supplies And Services - Miscellaneous Expenses        ,02/06/2017,6086305,20.00,Revenue,CRD79352,Security Plus + Limited                 
Shropshire,00GG,Central Services - Trading Services,Supplies And Services - Catering                      ,02/06/2017,6100933,33.22,Revenue,CRD76838,Bidfood                                 
Shropshire,00GG,Central Services - Trading Services,Supplies And Services - Catering                      ,02/06/2017,6100933,526.34,Revenue,CRD76838,Bidfood                                 
Shropshire,00GG,Central Services - Trading Services,Supplies And Services - Miscellaneous Expenses        ,02/06/2017,6086305,40.00,Revenue,CRD79352,Security Plus + Limited                 
Shropshire,00GG,Central Services - Trading Services,Supplies And Services - Miscellaneous Expenses        ,02/06/2017,6086305,20.00,Revenue,CRD79352,Security Plus + Limited                 
Shropshire,00GG,Central Services - Trading undertakings,Supplies And Services - Catering                      ,02/06/2017,6100957,7.46,Revenue,CRD76838,Bidfood                                 
Shropshire,00GG,Central Services - Trading undertakings,Supplies And Services - Catering                      ,02/06/2017,6100957,547.17,Revenue,CRD76838,Bidfood                                 
Shropshire,00GG,Central Services - Trading undertakings,Supplies And Services - Miscellaneous Expenses        ,02/06/2017,6086305,20.00,Revenue,CRD79352,Security Plus + Limited                 
Shropshire,00GG,Central Services - Trading undertakings,Supplies And Services - Catering                      ,02/06/2017,6100958,16.61,Revenue,CRD76838,Bidfood                                 
Shropshire,00GG,Central Services - Trading undertakings,Supplies And Services - Catering                      ,02/06/2017,6100958,604.64,Revenue,CRD76838,Bidfood                                 
Shropshire,00GG,Central Services - Trading undertakings,Supplies And Services - Miscellaneous Expenses        ,02/06/2017,6086305,20.00,Revenue,CRD79352,Security Plus + Limited                 
Shropshire,00GG,"Cultural, Environmental, Regulatory and Planning Services  - Building Control",Employees - Indirect Employee Expenses    ,02/06/2017,6079961,"1,450.85",Revenue,CRT04116,The Oyster Partnership Ltd              
Shropshire,00GG,"Cultural, Environmental, Regulatory and Planning Services  - Building Control",Employees - Indirect Employee Expenses    ,02/06/2017,6079959,"2,054.60",Revenue,CRT04116,The Oyster Partnership Ltd              
Shropshire,00GG,"Cultural, Environmental, Regulatory and Planning Services  - Environmental initiatives",Supplies And Services - Miscellaneous Expenses        ,02/06/2017,6100725,666.00,Revenue,CRD98849,Leo Smith Ornithological Surveys & Cons 
Shropshire,00GG,"Cultural, Environmental, Regulatory and Planning Services  - Environmental initiatives",Supplies And Services - Miscellaneous Expenses        ,02/06/2017,6100725,225.00,Revenue,CRD98849,Leo Smith Ornithological Surveys & Cons 
Shropshire,00GG,"Cultural, Environmental, Regulatory and Planning Services  - Environmental initiatives",Supplies And Services - Grants & Subscriptions        ,02/06/2017,6100725,584.00,Revenue,CRD98849,Leo Smith Ornithological Surveys & Cons 
Shropshire,00GG,Highways and Transport Services - Public Transport,Employees - Indirect Employee Expenses    ,02/06/2017,6077949,"3,090.15",Revenue,CRT04474,Fwr Logistics                           
Shropshire,00GG,"Cultural, Environmental, Regulatory and Planning Services  - Development Control",Supplies And Services - Miscellaneous Expenses        ,02/06/2017,6081401,693.00,Revenue,CRD10463,Midland News Association Ltd            
Shropshire,00GG,"Cultural, Environmental, Regulatory and Planning Services  - Development Control",Supplies And Services - Miscellaneous Expenses        ,02/06/2017,6081400,"1,620.00",Revenue,CRD92619,Haymarket Media Group Ltd               
Shropshire,00GG,"Cultural, Environmental, Regulatory and Planning Services  - Development Control",Supplies And Services - Miscellaneous Expenses        ,02/06/2017,6086312,"1,583.27",Revenue,CRT04067,Esp Ltd                                 
Shropshire,00GG,"Cultural, Environmental, Regulatory and Planning Services  - Development Control",Employees - Indirect Employee Expenses    ,02/06/2017,6079962,"1,338.75",Revenue,CRT04116,The Oyster Partnership Ltd              
Shropshire,00GG,"Cultural, Environmental, Regulatory and Planning Services  - Development Control",Employees - Indirect Employee Expenses    ,02/06/2017,6079960,"2,053.59",Revenue,CRT04116,The Oyster Partnership Ltd              
Shropshire,00GG,Highways and Transport Services - Management & Support Services,Transport Related   - Direct Transport Costs        ,02/06/2017,6092755,"2,464.88",Revenue,CRT05680,Uk Fuels Limited                        
Shropshire,00GG,Highways and Transport Services - Management & Support Services,Transport Related   - Direct Transport Costs        ,02/06/2017,6092755,60.00,Revenue,CRT05680,Uk Fuels Limited                        
Shropshire,00GG,Highways and Transport Services - Public Transport,Supplies And Services - Miscellaneous Expenses        ,02/06/2017,6084957,"2,072.00",Revenue,CRT01828,Data Management Consultancy             
Shropshire,00GG,Highways and Transport Services - Public Transport,Supplies And Services - Grants & Subscriptions        ,02/06/2017,6091560,"1,957.13",Revenue,CRD99531,Diamond Bus Company Ltd                 
Shropshire,00GG,"Cultural, Environmental, Regulatory and Planning Services  - Culture and heritage",Supplies And Services - Miscellaneous Expenses        ,02/06/2017,6098798,425.00,Revenue,CRT00358,Gravelmaster Ltd                        
Shropshire,00GG,"Cultural, Environmental, Regulatory and Planning Services  - Culture and heritage",Income - Sales                         ,02/06/2017,6077951,601.43,Revenue,TOP25182,Sabrina Tours Ltd                       
Shropshire,00GG,"Cultural, Environmental, Regulatory and Planning Services  - Culture and heritage",Supplies And Services - Miscellaneous Expenses        ,02/06/2017,6085027,"1,000.00",Revenue,CRD78619,Oswestry & Borderland Tourism Ltd       
Shropshire,00GG,"Cultural, Environmental, Regulatory and Planning Services  - Open spaces",Premises Related - Repair & Maint. General       ,02/06/2017,6100612,750.00,Revenue,CRD93787,Independent Grounds Maintenance         
Shropshire,00GG,"Cultural, Environmental, Regulatory and Planning Services  - Open spaces",Premises Related - Repair & Maint. General       ,02/06/2017,6100608,637.50,Revenue,CRD93787,Independent Grounds Maintenance         
Shropshire,00GG,Highways and Transport Services - Management & Support Services,Transport Related   - Direct Transport Costs        ,02/06/2017,6100823,484.00,Revenue,CRD68272,Central Taxis Ltd T/A Go Carz           
Shropshire,00GG,Highways and Transport Services - Management & Support Services,Transport Related   - Direct Transport Costs        ,02/06/2017,6100819,697.50,Revenue,CRD68272,Central Taxis Ltd T/A Go Carz           
Shropshire,00GG,Highways and Transport Services - Management & Support Services,Transport Related   - Direct Transport Costs        ,02/06/2017,6100784,972.00,Revenue,CRD68272,Central Taxis Ltd T/A Go Carz           
Shropshire,00GG,Highways and Transport Services - Management & Support Services,Transport Related   - Direct Transport Costs        ,02/06/2017,6100879,128.73,Revenue,CRD68272,Central Taxis Ltd T/A Go Carz           
Shropshire,00GG,Children's and Education Services - Directorate,Employees - Indirect Employee Expenses    ,02/06/2017,6080785,"1,260.00",Revenue,CRT05174,J K Pilkington                          
Shropshire,00GG,Children's and Education Services - Social Care and Safeguards Commissioning and Social Work,Employees - Indirect Employee Expenses    ,02/06/2017,6076681,"1,140.45",Revenue,CRT04983,Child In Focus Ltd                      
Shropshire,00GG,Children's and Education Services - Social Care and Safeguards Commissioning and Social Work,Third Party Payments - Private Contractors           ,02/06/2017,6098256,"12,500.00",Revenue,CRD97543,Newstart Networks Cic                   
Shropshire,00GG,Children's and Education Services - Social Care and Safeguards Looked After Children,Premises Related - Repair & Maint. General       ,02/06/2017,6100633,17.47,Revenue,CRD11294,Chelmaren Childrens Home Ac
Shropshire,00GG,Children's and Education Services - Social Care and Safeguards Looked After Children,Supplies And Services - Equipt.  Furn. & Materials    ,02/06/2017,6100633,100.00,Revenue,CRD11294,Chelmaren Childrens Home Ac
Shropshire,00GG,Children's and Education Services - Social Care and Safeguards Looked After Children,Supplies And Services - Equipt.  Furn. & Materials    ,02/06/2017,6100633,8.37,Revenue,CRD11294,Chelmaren Childrens Home Ac
Shropshire,00GG,Children's and Education Services - Social Care and Safeguards Looked After Children,Supplies And Services - Miscellaneous Expenses        ,02/06/2017,6100633,103.30,Revenue,CRD11294,Chelmaren Childrens Home Ac
Shropshire,00GG,Children's and Education Services - Social Care and Safeguards Looked After Children,Supplies And Services - Printing & Stationery         ,02/06/2017,6100633,5.00,Revenue,CRD11294,Chelmaren Childrens Home Ac
Shropshire,00GG,Children's and Education Services - Social Care and Safeguards Looked After Children,Supplies And Services - Catering                      ,02/06/2017,6100633,333.49,Revenue,CRD11294,Chelmaren Childrens Home Ac
Shropshire,00GG,Children's and Education Services - Social Care and Safeguards Looked After Children,Supplies And Services - Catering                      ,02/06/2017,6100633,66.39,Revenue,CRD11294,Chelmaren Childrens Home Ac
Shropshire,00GG,Children's and Education Services - Social Care and Safeguards Looked After Children,Supplies And Services - Clothing Uniform & Laundry    ,02/06/2017,6100633,59.11,Revenue,CRD11294,Chelmaren Childrens Home Ac
Shropshire,00GG,Children's and Education Services - Social Care and Safeguards Looked After Children,Transport Related   - Public Transport              ,02/06/2017,6100633,14.60,Revenue,CRD11294,Chelmaren Childrens Home Ac
Shropshire,00GG,Children's and Education Services - Social Care and Safeguards Looked After Children,Transport Related   - Direct Transport Costs        ,02/06/2017,6100633,5.20,Revenue,CRD11294,Chelmaren Childrens Home Ac
Shropshire,00GG,Children's and Education Services - Social Care and Safeguards Looked After Children,Third Party Payments - Private Contractors           ,02/06/2017,6055161,"114,796.02",Revenue,CRT00007,Mencap - Ps Central & Cymru             
Shropshire,00GG,Children's and Education Services - Social Care and Safeguards Looked After Children,Third Party Payments - Private Contractors           ,02/06/2017,6081238,"9,964.29",Revenue,CRD99845,Caretech Community Services Ltd         
Shropshire,00GG,Children's and Education Services - Social Care and Safeguards Looked After Children,Third Party Payments - Private Contractors           ,02/06/2017,6093006,"5,494.73",Revenue,CRT05588,Summergil House (Orbis Ed & Care)       
Shropshire,00GG,Children's and Education Services - Social Care and Safeguards Looked After Children,Third Party Payments - Private Contractors           ,02/06/2017,6093007,"28,389.45",Revenue,CRT05588,Summergil House (Orbis Ed & Care)       
Shropshire,00GG,Children's and Education Services - Social Care and Safeguards Looked After Children,Third Party Payments - Private Contractors           ,02/06/2017,6087131,"10,225.80",Revenue,CRD58867,Keys Child Care Ltd                     
Shropshire,00GG,Children's and Education Services - Social Care and Safeguards Looked After Children,Third Party Payments - Private Contractors           ,02/06/2017,6087095,"10,225.80",Revenue,CRD58867,Keys Child Care Ltd                     
Shropshire,00GG,Children's and Education Services - Social Care and Safeguards Looked After Children,Third Party Payments - Private Contractors           ,02/06/2017,6092995,"13,285.67",Revenue,CRT00051,Horizon Care And Education Group Limited
Shropshire,00GG,Children's and Education Services - Social Care and Safeguards Looked After Children,Third Party Payments - Private Contractors           ,02/06/2017,6092992,"13,644.34",Revenue,CRT00051,Horizon Care And Education Group Limited
Shropshire,00GG,Children's and Education Services - Social Care and Safeguards Looked After Children,Third Party Payments - Private Contractors           ,02/06/2017,6092991,"13,644.34",Revenue,CRT00051,Horizon Care And Education Group Limited
Shropshire,00GG,Children's and Education Services - Social Care and Safeguards Looked After Children,Third Party Payments - Private Contractors           ,02/06/2017,6092993,"4,588.00",Revenue,CRT00051,Horizon Care And Education Group Limited
Shropshire,00GG,Children's and Education Services - Social Care and Safeguards Looked After Children,Third Party Payments - Private Contractors           ,02/06/2017,6081252,"6,557.22",Revenue,CRT05563,Prestige Adolescent Care & Education    
Shropshire,00GG,Children's and Education Services - Social Care and Safeguards Looked After Children,Premises Related - Rents                         ,02/06/2017,6099634,"4,371.43",Revenue,CRT01062,Saail                                   
Shropshire,00GG,Children's and Education Services - Social Care and Safeguards Looked After Children,Transport Related   - Public Transport              ,02/06/2017,6082747,455.00,Revenue,CRT05025,Regal Cabs Limited                      
Shropshire,00GG,Children's and Education Services - Social Care and Safeguards Looked After Children,Third Party Payments - Private Contractors           ,02/06/2017,6092972,"4,002.41",Revenue,CRD65897,Prospects For Young People Ltd          
Shropshire,00GG,Children's and Education Services - Social Care and Safeguards Looked After Children,Third Party Payments - Private Contractors           ,02/06/2017,6092973,"3,873.30",Revenue,CRD65897,Prospects For Young People Ltd          
Shropshire,00GG,Children's and Education Services - Social Care and Safeguards Looked After Children,Third Party Payments - Private Contractors           ,02/06/2017,6092974,"3,941.34",Revenue,CRD65897,Prospects For Young People Ltd          
Shropshire,00GG,Children's and Education Services - Social Care and Safeguards Looked After Children,Third Party Payments - Private Contractors           ,02/06/2017,6092975,"3,963.66",Revenue,CRD65897,Prospects For Young People Ltd          
Shropshire,00GG,Children's and Education Services - Social Care and Safeguards Looked After Children,Third Party Payments - Private Contractors           ,02/06/2017,6087103,"3,171.60",Revenue,CRD81914,National Fostering Agency               
Shropshire,00GG,Children's and Education Services - Social Care and Safeguards Looked After Children,Third Party Payments - Private Contractors           ,02/06/2017,6087105,"3,205.80",Revenue,CRD81914,National Fostering Agency               
Shropshire,00GG,Children's and Education Services - Social Care and Safeguards Looked After Children,Third Party Payments - Private Contractors           ,02/06/2017,6087135,700.00,Revenue,CRD93588,Swiis Foster Care                       
Shropshire,00GG,Children's and Education Services - Social Care and Safeguards Looked After Children,Third Party Payments - Private Contractors           ,02/06/2017,6087112,"2,902.73",Revenue,CRD93659,Tact                                    
Shropshire,00GG,Children's and Education Services - Social Care and Safeguards Looked After Children,Third Party Payments - Private Contractors           ,02/06/2017,6087113,"3,055.50",Revenue,CRD93659,Tact                                    
Shropshire,00GG,Children's and Education Services - Social Care and Safeguards Looked After Children,Third Party Payments - Private Contractors           ,02/06/2017,6087114,"4,783.20",Revenue,CRD98279,The Foster Care Co-Operative Ltd        
Shropshire,00GG,Children's and Education Services - Social Care and Safeguards Looked After Children,Third Party Payments - Private Contractors           ,02/06/2017,6087118,"3,058.72",Revenue,CRD99598,Abc Fostering Services Ltd              
Shropshire,00GG,Children's and Education Services - Social Care and Safeguards Looked After Children,Third Party Payments - Private Contractors           ,02/06/2017,6087119,"3,058.72",Revenue,CRD99598,Abc Fostering Services Ltd              
Shropshire,00GG,Children's and Education Services - Social Care and Safeguards Looked After Children,Third Party Payments - Private Contractors           ,02/06/2017,6087120,"2,823.42",Revenue,CRD99598,Abc Fostering Services Ltd              
Shropshire,00GG,Children's and Education Services - Social Care and Safeguards Looked After Children,Third Party Payments - Private Contractors           ,02/06/2017,6087121,"2,823.42",Revenue,CRD99598,Abc Fostering Services Ltd              
Shropshire,00GG,Children's and Education Services - Social Care and Safeguards Looked After Children,Third Party Payments - Private Contractors           ,02/06/2017,6092996,"5,053.00",Revenue,CRT00626,Nexus Fostering                         
Shropshire,00GG,Children's and Education Services - Social Care and Safeguards Looked After Children,Third Party Payments - Private Contractors           ,02/06/2017,6092997,"5,735.00",Revenue,CRT00626,Nexus Fostering                         
Shropshire,00GG,Children's and Education Services - Social Care and Safeguards Other,Supplies And Services - Miscellaneous Expenses        ,02/06/2017,6092967,900.00,Revenue,CRD97543,Newstart Networks Cic                   
Shropshire,00GG,Children's and Education Services - Social Care and Safeguards Other,Employees - Indirect Employee Expenses    ,02/06/2017,6080754,629.00,Revenue,CRT05605,Nonstop Recruitment Ltd                 
Shropshire,00GG,Children's and Education Services - Social Care and Safeguards Other,Employees - Indirect Employee Expenses    ,02/06/2017,6080753,629.00,Revenue,CRT05605,Nonstop Recruitment Ltd                 
Shropshire,00GG,Children's and Education Services - Social Care and Safeguards Other,Supplies And Services - Miscellaneous Expenses        ,02/06/2017,6081518,550.00,Revenue,CRT03987,Sea Change Psychotherapy Ltd            
Shropshire,00GG,Children's and Education Services - Social Care and Safeguards Other,Supplies And Services - Miscellaneous Expenses        ,02/06/2017,6081481,600.00,Revenue,CRT03987,Sea Change Psychotherapy Ltd            
Shropshire,00GG,Children's and Education Services - Social Care and Safeguards Other,Supplies And Services - Miscellaneous Expenses        ,02/06/2017,6081510,600.00,Revenue,CRT03987,Sea Change Psychotherapy Ltd            
Shropshire,00GG,Children's and Education Services - Social Care and Safeguards Other,Supplies And Services - Miscellaneous Expenses        ,02/06/2017,6081487,600.00,Revenue,CRT03987,Sea Change Psychotherapy Ltd            
Shropshire,00GG,Children's and Education Services - Social Care and Safeguards Family Support Services,Supplies And Services - Miscellaneous Expenses        ,02/06/2017,6092176,555.50,Revenue,CRD61388,The Marches Family Network              
Shropshire,00GG,Children's and Education Services - Social Care and Safeguards,Third Party Payments - Private Contractors           ,02/06/2017,6087096,"10,225.80",Revenue,CRD58867,Keys Child Care Ltd                     
Shropshire,00GG,Children's and Education Services - Social Care and Safeguards,Third Party Payments - Private Contractors           ,02/06/2017,6099624,"18,232.34",Revenue,CRT00051,Horizon Care And Education Group Limited
Shropshire,00GG,Children's and Education Services - Social Care and Safeguards,Third Party Payments - Private Contractors           ,02/06/2017,6092994,"18,232.34",Revenue,CRT00051,Horizon Care And Education Group Limited
Shropshire,00GG,Children's and Education Services - Social Care and Safeguards,Third Party Payments - Private Contractors           ,02/06/2017,6093048,"-17,056.06",Revenue,CRT00051,Horizon Care And Education Group Limited
Shropshire,00GG,None SeRCOP - Management & Support Services - Reallocated,Third Party Payments - Private Contractors           ,02/06/2017,6096622,"2,000.00",Revenue,CRD99560,Healthwatch Shropshire                  
Shropshire,00GG,Adult Social Care - Older people (aged 65 or over) including older mentally ill,Third Party Payments - Private Contractors           ,02/06/2017,6089612,630.72,Revenue,CRD63721,C & S Care Services Ltd                 
Shropshire,00GG,Adult Social Care - Older people (aged 65 or over) including older mentally ill,Third Party Payments - Private Contractors           ,02/06/2017,6101106,"5,290.29",Revenue,CRD86702,J K Caring For You                      
Shropshire,00GG,Adult Social Care - Older people (aged 65 or over) including older mentally ill,Third Party Payments - Private Contractors           ,02/06/2017,6100670,992.34,Revenue,CRD86702,J K Caring For You                      
Shropshire,00GG,Adult Social Care - Older people (aged 65 or over) including older mentally ill,Third Party Payments - Private Contractors           ,02/06/2017,6101121,"1,586.52",Revenue,CRD95298,Tailored Care Ltd                       
Shropshire,00GG,Adult Social Care - Older people (aged 65 or over) including older mentally ill,Third Party Payments - Private Contractors           ,02/06/2017,6098886,"2,277.20",Revenue,CRD95298,Tailored Care Ltd                       
Shropshire,00GG,Adult Social Care - Older people (aged 65 or over) including older mentally ill,Third Party Payments - Private Contractors           ,02/06/2017,6089568,"1,093.20",Revenue,CRD99031,Care Of Excellence Ltd                  
Shropshire,00GG,Adult Social Care - Older people (aged 65 or over) including older mentally ill,Third Party Payments - Private Contractors           ,02/06/2017,6089569,"2,241.54",Revenue,CRD99031,Care Of Excellence Ltd                  
Shropshire,00GG,Adult Social Care - Older people (aged 65 or over) including older mentally ill,Third Party Payments - Private Contractors           ,02/06/2017,6095655,"1,351.35",Revenue,CRT04230,Outcome Care And Support Ltd            
Shropshire,00GG,Adult Social Care - Older people (aged 65 or over) including older mentally ill,Third Party Payments - Private Contractors           ,02/06/2017,6095656,"1,075.55",Revenue,CRT04230,Outcome Care And Support Ltd            
Shropshire,00GG,Adult Social Care - Older people (aged 65 or over) including older mentally ill,Third Party Payments - Private Contractors           ,02/06/2017,6089617,658.75,Revenue,CRT04484,Essence Telford Ltd                     
Shropshire,00GG,Adult Social Care - Older people (aged 65 or over) including older mentally ill,Third Party Payments - Private Contractors           ,02/06/2017,6089617,"1,185.75",Revenue,CRT04484,Essence Telford Ltd                     
Shropshire,00GG,Adult Social Care - Older people (aged 65 or over) including older mentally ill,Third Party Payments - Private Contractors           ,02/06/2017,6095491,672.00,Revenue,CRD77140,Peace Of Mind Homecare Ltd              
Shropshire,00GG,Adult Social Care - Older people (aged 65 or over) including older mentally ill,Third Party Payments - Private Contractors           ,02/06/2017,6101122,758.00,Revenue,CRD95298,Tailored Care Ltd                       
Shropshire,00GG,Adult Social Care - Older people (aged 65 or over) including older mentally ill,Third Party Payments - Private Contractors           ,02/06/2017,6098886,"2,277.20",Revenue,CRD95298,Tailored Care Ltd                       
Shropshire,00GG,Adult Social Care - Older people (aged 65 or over) including older mentally ill,Third Party Payments - Private Contractors           ,02/06/2017,6089446,"2,878.68",Revenue,CRD98709,Brockton Care Ltd                       
Shropshire,00GG,Adult Social Care - Older people (aged 65 or over) including older mentally ill,Third Party Payments - Private Contractors           ,02/06/2017,6089447,"2,029.38",Revenue,CRD98709,Brockton Care Ltd                       
Shropshire,00GG,Adult Social Care - Older people (aged 65 or over) including older mentally ill,Third Party Payments - Private Contractors           ,02/06/2017,6100646,"1,780.80",Revenue,CRT03043,Phoenix Homecare And Support Ltd        
Shropshire,00GG,Adult Social Care - Older people (aged 65 or over) including older mentally ill,Third Party Payments - Private Contractors           ,02/06/2017,6100647,605.90,Revenue,CRT03043,Phoenix Homecare And Support Ltd        
Shropshire,00GG,Adult Social Care - Older people (aged 65 or over) including older mentally ill,Third Party Payments - Private Contractors           ,02/06/2017,6100649,"2,788.80",Revenue,CRT03043,Phoenix Homecare And Support Ltd        
Shropshire,00GG,Adult Social Care - Older people (aged 65 or over) including older mentally ill,Third Party Payments - Private Contractors           ,02/06/2017,6089451,786.48,Revenue,CRT04961,Cloverley Care Ltd                      
Shropshire,00GG,Adult Social Care - Older people (aged 65 or over) including older mentally ill,Third Party Payments - Private Contractors           ,02/06/2017,6089450,762.12,Revenue,CRT04961,Cloverley Care Ltd                      
Shropshire,00GG,Adult Social Care - Older people (aged 65 or over) including older mentally ill,Third Party Payments - Private Contractors           ,02/06/2017,6089444,922.50,Revenue,CRT05395,Approved Care And Support               
Shropshire,00GG,Adult Social Care - Older people (aged 65 or over) including older mentally ill,Third Party Payments - Private Contractors           ,02/06/2017,6101111,"1,370.22",Revenue,CRD89010,Bluebird Care (Shropshire Care Ltd)     
Shropshire,00GG,Adult Social Care - Older people (aged 65 or over) including older mentally ill,Third Party Payments - Private Contractors           ,02/06/2017,6101123,"1,701.95",Revenue,CRD95298,Tailored Care Ltd                       
Shropshire,00GG,Adult Social Care - Older people (aged 65 or over) including older mentally ill,Third Party Payments - Private Contractors           ,02/06/2017,6098886,"2,277.20",Revenue,CRD95298,Tailored Care Ltd                       
Shropshire,00GG,Public Health - Other,Supplies And Services - Communications & Computing    ,02/06/2017,6085213,"5,768.75",Revenue,CRD99410,Shropshire Doctors Co-Op Ltd            
Shropshire,00GG,Public Health - Other,Third Party Payments - Private Contractors           ,02/06/2017,6081960,"7,677.67",Revenue,CRD38966,Royal Shrewsbury Hospital Nhs Trust     
Shropshire,00GG,Public Health - Other,Third Party Payments - Private Contractors           ,02/06/2017,6080610,-92.80,Revenue,CRD99506,L Rowland & Co (Retail) Ltd             
Shropshire,00GG,Public Health - Other,Third Party Payments - Private Contractors           ,02/06/2017,6080610,"2,713.06",Revenue,CRD99506,L Rowland & Co (Retail) Ltd             
Shropshire,00GG,Public Health - Other,Third Party Payments - Private Contractors           ,02/06/2017,6080610,148.52,Revenue,CRD99506,L Rowland & Co (Retail) Ltd             
Shropshire,00GG,Public Health - Other,Third Party Payments - Private Contractors           ,02/06/2017,6080649,-58.80,Revenue,CRT02866,Dispense 2 U Ltd                        
Shropshire,00GG,Public Health - Other,Third Party Payments - Private Contractors           ,02/06/2017,6080649,933.47,Revenue,CRT02866,Dispense 2 U Ltd                        
Shropshire,00GG,Public Health - Other,Third Party Payments - Private Contractors           ,02/06/2017,6080649,43.52,Revenue,CRT02866,Dispense 2 U Ltd                        
Shropshire,00GG,Public Health - Other,Third Party Payments - Private Contractors           ,02/06/2017,6074096,"63,542.17",Revenue,CRD95793,Shropshire Community Health Nhs Trust   
Shropshire,00GG,Public Health - Other,Third Party Payments - Private Contractors           ,02/06/2017,6074101,"309,000.00",Revenue,CRD95793,Shropshire Community Health Nhs Trust   
Shropshire,00GG,Public Health - Other,Third Party Payments - Private Contractors           ,02/06/2017,6096620,"4,150.00",Revenue,CRD99410,Shropshire Doctors Co-Op Ltd            
Shropshire,00GG,Public Health - Other,Supplies And Services - Miscellaneous Expenses        ,02/06/2017,6081982,"4,550.00",Revenue,CRT03483,Pathways2Prevention Ltd                 
Shropshire,00GG,Adult Social Care - Older people (aged 65 or over) including older mentally ill,Employees - Indirect Employee Expenses    ,02/06/2017,6083161,174.19,Revenue,CRT02641,Newcross Healthcare Solutions           
Shropshire,00GG,Adult Social Care - Older people (aged 65 or over) including older mentally ill,Employees - Indirect Employee Expenses    ,02/06/2017,6083161,152.00,Revenue,CRT02641,Newcross Healthcare Solutions           
Shropshire,00GG,Adult Social Care - Older people (aged 65 or over) including older mentally ill,Employees - Indirect Employee Expenses    ,02/06/2017,6083161,106.78,Revenue,CRT02641,Newcross Healthcare Solutions           
Shropshire,00GG,Adult Social Care - Older people (aged 65 or over) including older mentally ill,Employees - Indirect Employee Expenses    ,02/06/2017,6083161,107.13,Revenue,CRT02641,Newcross Healthcare Solutions           
Shropshire,00GG,Adult Social Care - Older people (aged 65 or over) including older mentally ill,Employees - Indirect Employee Expenses    ,02/06/2017,6083161,363.87,Revenue,CRT02641,Newcross Healthcare Solutions           
Shropshire,00GG,Adult Social Care - Older people (aged 65 or over) including older mentally ill,Employees - Indirect Employee Expenses    ,02/06/2017,6083161,450.98,Revenue,CRT02641,Newcross Healthcare Solutions           
Shropshire,00GG,Adult Social Care - Older people (aged 65 or over) including older mentally ill,Employees - Indirect Employee Expenses    ,02/06/2017,6083161,460.34,Revenue,CRT02641,Newcross Healthcare Solutions           
Shropshire,00GG,Adult Social Care - Older people (aged 65 or over) including older mentally ill,Employees - Indirect Employee Expenses    ,02/06/2017,6083161,379.47,Revenue,CRT02641,Newcross Healthcare Solutions           
Shropshire,00GG,Adult Social Care - Older people (aged 65 or over) including older mentally ill,Third Party Payments - Private Contractors           ,02/06/2017,6093693,"7,000.00",Revenue,CRT01833,Shropshire Rcc                          
Shropshire,00GG,Adult Social Care - Older people (aged 65 or over) including older mentally ill,Third Party Payments - Private Contractors           ,02/06/2017,6093694,"4,194.25",Revenue,CRT01833,Shropshire Rcc                          
Shropshire,00GG,Adult Social Care - Older people (aged 65 or over) including older mentally ill,Employees - Indirect Employee Expenses    ,02/06/2017,6092746,"1,140.45",Revenue,CRT04983,Child In Focus Ltd                      
Shropshire,00GG,Adult Social Care - Adults aged under 65 with physical disability or sensory impairment,Third Party Payments - Private Contractors           ,02/06/2017,6078268,"6,667.00",Revenue,CRD78226,Independent Living Partnership Ltd      
Shropshire,00GG,Adult Social Care - Adults aged under 65 with physical disability or sensory impairment,Third Party Payments - Private Contractors           ,02/06/2017,6078268,"17,786.25",Revenue,CRD78226,Independent Living Partnership Ltd      
Shropshire,00GG,Adult Social Care - Adults aged under 65 with physical disability or sensory impairment,Third Party Payments - Private Contractors           ,02/06/2017,6080592,"3,550.40",Revenue,CRD61519,Coverage Care Services Ltd              
Shropshire,00GG,Adult Social Care - Adults aged under 65 with physical disability or sensory impairment,Third Party Payments - Private Contractors           ,02/06/2017,6101095,776.62,Revenue,CRD63721,C & S Care Services Ltd                 
Shropshire,00GG,Adult Social Care - Adults aged under 65 with physical disability or sensory impairment,Third Party Payments - Private Contractors           ,02/06/2017,6101097,"2,814.60",Revenue,CRD77140,Peace Of Mind Homecare Ltd              
Shropshire,00GG,Adult Social Care - Adults aged under 65 with physical disability or sensory impairment,Third Party Payments - Private Contractors           ,02/06/2017,6101109,"1,876.67",Revenue,CRD86702,J K Caring For You                      
Shropshire,00GG,Adult Social Care - Adults aged under 65 with physical disability or sensory impairment,Third Party Payments - Private Contractors           ,02/06/2017,6101124,"1,144.04",Revenue,CRD95298,Tailored Care Ltd                       
Shropshire,00GG,Adult Social Care - Adults aged under 65 with physical disability or sensory impairment,Third Party Payments - Private Contractors           ,02/06/2017,6101129,856.18,Revenue,CRT04130,La Petite Concierge                     
Shropshire,00GG,Adult Social Care - Adults aged under 65 with physical disability or sensory impairment,Third Party Payments - Private Contractors           ,02/06/2017,6101079,"3,098.78",Revenue,CRD32106,Radis Community Care                    
Shropshire,00GG,Adult Social Care - Adults aged under 65 with physical disability or sensory impairment,Third Party Payments - Private Contractors           ,02/06/2017,6101094,"3,307.79",Revenue,CRD61048,Short Notice Care Services              
Shropshire,00GG,Adult Social Care - Adults aged under 65 with physical disability or sensory impairment,Third Party Payments - Private Contractors           ,02/06/2017,6101098,500.51,Revenue,CRD77140,Peace Of Mind Homecare Ltd              
Shropshire,00GG,Adult Social Care - Adults aged under 65 with physical disability or sensory impairment,Third Party Payments - Private Contractors           ,02/06/2017,6101104,"2,553.54",Revenue,CRD80962,Salopian Care Ltd                       
Shropshire,00GG,Adult Social Care - Adults aged under 65 with physical disability or sensory impairment,Third Party Payments - Private Contractors           ,02/06/2017,6101113,717.85,Revenue,CRD89010,Bluebird Care (Shropshire Care Ltd)     
Shropshire,00GG,Adult Social Care - Adults aged under 65 with physical disability or sensory impairment,Third Party Payments - Private Contractors           ,02/06/2017,6101117,"3,893.61",Revenue,CRD92228,Oswestry Care Ltd                       
Shropshire,00GG,Adult Social Care - Adults aged under 65 with physical disability or sensory impairment,Third Party Payments - Private Contractors           ,02/06/2017,6101127,"2,211.95",Revenue,CRD96652,North Shropshire Home Care Ltd          
Shropshire,00GG,Adult Social Care - Adults aged under 65 with physical disability or sensory impairment,Third Party Payments - Private Contractors           ,02/06/2017,6101128,577.64,Revenue,CRD98709,Brockton Care Ltd                       
Shropshire,00GG,Adult Social Care - Adults aged under 65 with physical disability or sensory impairment,Third Party Payments - Private Contractors           ,02/06/2017,6101080,903.47,Revenue,CRD32106,Radis Community Care                    
Shropshire,00GG,Adult Social Care - Adults aged under 65 with physical disability or sensory impairment,Third Party Payments - Private Contractors           ,02/06/2017,6101105,525.00,Revenue,CRD85470,Supreme Home Care                       
Shropshire,00GG,Adult Social Care - Adults aged under 65 with physical disability or sensory impairment,Supplies And Services - Services/Allowances           ,02/06/2017,6074046,53.50,Revenue,CRD94263,Mears Group Plc                         
Shropshire,00GG,Adult Social Care - Adults aged under 65 with physical disability or sensory impairment,Supplies And Services - Services/Allowances           ,02/06/2017,6074046,94.00,Revenue,CRD94263,Mears Group Plc                         
Shropshire,00GG,Adult Social Care - Adults aged under 65 with physical disability or sensory impairment,Supplies And Services - Services/Allowances           ,02/06/2017,6074046,53.50,Revenue,CRD94263,Mears Group Plc                         
Shropshire,00GG,Adult Social Care - Adults aged under 65 with physical disability or sensory impairment,Supplies And Services - Services/Allowances           ,02/06/2017,6074046,30.50,Revenue,CRD94263,Mears Group Plc                         
Shropshire,00GG,Adult Social Care - Adults aged under 65 with physical disability or sensory impairment,Supplies And Services - Services/Allowances           ,02/06/2017,6074046,176.00,Revenue,CRD94263,Mears Group Plc                         
Shropshire,00GG,Adult Social Care - Adults aged under 65 with physical disability or sensory impairment,Supplies And Services - Services/Allowances           ,02/06/2017,6074046,147.50,Revenue,CRD94263,Mears Group Plc                         
Shropshire,00GG,Adult Social Care - Adults aged under 65 with physical disability or sensory impairment,Supplies And Services - Services/Allowances           ,02/06/2017,6074046,130.67,Revenue,CRD94263,Mears Group Plc                         
Shropshire,00GG,Adult Social Care - Adults aged under 65 with physical disability or sensory impairment,Supplies And Services - Services/Allowances           ,02/06/2017,6074065,147.50,Revenue,CRD94263,Mears Group Plc                         
Shropshire,00GG,Adult Social Care - Adults aged under 65 with physical disability or sensory impairment,Supplies And Services - Services/Allowances           ,02/06/2017,6074065,30.50,Revenue,CRD94263,Mears Group Plc                         
Shropshire,00GG,Adult Social Care - Adults aged under 65 with physical disability or sensory impairment,Supplies And Services - Services/Allowances           ,02/06/2017,6074065,124.50,Revenue,CRD94263,Mears Group Plc                         
Shropshire,00GG,Adult Social Care - Adults aged under 65 with physical disability or sensory impairment,Supplies And Services - Services/Allowances           ,02/06/2017,6074065,122.50,Revenue,CRD94263,Mears Group Plc                         
Shropshire,00GG,Adult Social Care - Adults aged under 65 with physical disability or sensory impairment,Supplies And Services - Services/Allowances           ,02/06/2017,6074065,268.67,Revenue,CRD94263,Mears Group Plc                         
Shropshire,00GG,Adult Social Care - Adults aged under 65 with physical disability or sensory impairment,Supplies And Services - Services/Allowances           ,02/06/2017,6085446,480.79,Revenue,CRD79184,Lift & Engineering Services Ltd         
Shropshire,00GG,Adult Social Care - Adults aged under 65 with learning disabilities,Third Party Payments - Private Contractors           ,02/06/2017,6101081,555.00,Revenue,CRD32106,Radis Community Care                    
Shropshire,00GG,Adult Social Care - Adults aged under 65 with learning disabilities,Third Party Payments - Private Contractors           ,02/06/2017,6101084,624.96,Revenue,CRD39419,Trident Reach The People Charity        
Shropshire,00GG,Adult Social Care - Adults aged under 65 with learning disabilities,Premises Related - Rents                         ,02/06/2017,6092744,"3,095.59",Revenue,CRT02555,Bromford Housing Association            
Shropshire,00GG,Adult Social Care - Adults aged under 65 with mental health needs,Third Party Payments - Private Contractors           ,02/06/2017,6086370,"2,888.83",Revenue,CRD96653,Redacted - Personal Information
Shropshire,00GG,None SeRCOP - Management & Support Services - Reallocated,Premises Related - Repair &Maint. Grounds        ,02/06/2017,6087964,612.00,Revenue,CRD86220,Taybar Limited                          
Shropshire,00GG,None SeRCOP - Management & Support Services - Reallocated,Supplies And Services - Communications & Computing    ,02/06/2017,6084979,"6,800.00",Revenue,CRD66223,Olm Systems Ltd                         
Shropshire,00GG,None SeRCOP - Management & Support Services - Reallocated,Supplies And Services - Communications & Computing    ,02/06/2017,6084978,488.90,Revenue,CRD66223,Olm Systems Ltd                         
Shropshire,00GG,Housing Services - Other Welfare Services,Supplies And Services - Miscellaneous Expenses        ,02/06/2017,6078269,"17,625.00",Revenue,CRD94263,Mears Group Plc                         
Shropshire,00GG,Housing Services - Private sector housing renewal,Supplies And Services - Miscellaneous Expenses        ,02/06/2017,6083787,500.00,Revenue,CRD94263,Mears Group Plc                         
Shropshire,00GG,Housing Services - Homelessness,Supplies And Services - Grants & Subscriptions        ,02/06/2017,6100870,"1,200.00",Revenue,TOP29529,Martin & Co                             
Shropshire,00GG,"Cultural, Environmental, Regulatory and Planning Services  - Street Cleansing (not chargeable to Highways)",Supplies And Services - Communications & Computing    ,02/06/2017,6077845,787.00,Revenue,CRD89440,Royal Mail Group Ltd                    
Shropshire,00GG,Children's and Education Services  - School and Pupil Support,Transport Related   - Contracts                     ,02/06/2017,6100879,11.55,Revenue,CRD68272,Central Taxis Ltd T/A Go Carz           
Shropshire,00GG,Children's and Education Services  - School and Pupil Support,Transport Related   - Contracts                     ,02/06/2017,5794180,500.91,Revenue,TOP29281,Redacted - Personal Information
Shropshire,00GG,Children's and Education Services  - School and Pupil Support,Transport Related   - Contracts                     ,02/06/2017,6100791,960.00,Revenue,CRD68272,Central Taxis Ltd T/A Go Carz           
Shropshire,00GG,Children's and Education Services  - School and Pupil Support,Transport Related   - Contracts                     ,02/06/2017,6100795,516.00,Revenue,CRD68272,Central Taxis Ltd T/A Go Carz           
Shropshire,00GG,Children's and Education Services  - School and Pupil Support,Transport Related   - Contracts                     ,02/06/2017,6100790,580.00,Revenue,CRD68272,Central Taxis Ltd T/A Go Carz           
Shropshire,00GG,Children's and Education Services  - School and Pupil Support,Transport Related   - Contracts                     ,02/06/2017,6100789,460.00,Revenue,CRD68272,Central Taxis Ltd T/A Go Carz           
Shropshire,00GG,Children's and Education Services  - School and Pupil Support,Transport Related   - Contracts                     ,02/06/2017,6100788,418.00,Revenue,CRD68272,Central Taxis Ltd T/A Go Carz           
Shropshire,00GG,Children's and Education Services  - Home to College Transport,Transport Related   - Contracts                     ,02/06/2017,6100822,480.00,Revenue,CRD68272,Central Taxis Ltd T/A Go Carz           
Shropshire,00GG,Children's and Education Services  - School and Pupil Support,Transport Related   - Contracts                     ,02/06/2017,6100879,516.72,Revenue,CRD68272,Central Taxis Ltd T/A Go Carz           
Shropshire,00GG,Adult Social Care - Adults aged under 65 with learning disabilities,Transport Related   - Direct Transport Costs        ,02/06/2017,6100787,448.00,Revenue,CRD68272,Central Taxis Ltd T/A Go Carz           
Shropshire,00GG,Adult Social Care - Adults aged under 65 with learning disabilities,Transport Related   - Direct Transport Costs        ,02/06/2017,6100786,836.00,Revenue,CRD68272,Central Taxis Ltd T/A Go Carz           
Shropshire,00GG,Environment & Regulatory - Regulatory Services,Supplies And Services - Miscellaneous Expenses        ,02/06/2017,6083172,884.06,Revenue,CRT04341,Als Environmental Limited               
Shropshire,00GG,"Cultural, Environmental, Regulatory and Planning Services  - Environmental Health",Income - Fees & Charges                ,02/06/2017,6100779,-115.00,Revenue,CRD04284,Hilbrae Pets Hotel                      
Shropshire,00GG,"Cultural, Environmental, Regulatory and Planning Services  - Environmental Health",Third Party Payments - Private Contractors           ,02/06/2017,6100779,"1,241.01",Revenue,CRD04284,Hilbrae Pets Hotel                      
Shropshire,00GG,"Environment & Regulatory - Cemetery, Cremation and Mortuary Services",Third Party Payments - Private Contractors           ,02/06/2017,6096266,"1,400.00",Revenue,CRD99855,Mr Mark Partridge                       
Shropshire,00GG,Environment & Regulatory - Regulatory Services,Supplies And Services - Miscellaneous Expenses        ,02/06/2017,6069456,"15,416.00",Revenue,CRD91194,Shropshire Housing                      
Shropshire,00GG,"Cultural, Environmental, Regulatory and Planning Services  - Culture and heritage",Supplies And Services - Miscellaneous Expenses        ,02/06/2017,6086039,15.00,Revenue,CRD89440,Royal Mail Group Ltd                    
Shropshire,00GG,"Cultural, Environmental, Regulatory and Planning Services  - Culture and heritage",Income - Fees & Charges                ,02/06/2017,6100832,393.40,Revenue,CRD97218,Rich Evans Design                       
Shropshire,00GG,"Cultural, Environmental, Regulatory and Planning Services  - Culture and heritage",Supplies And Services - Communications & Computing    ,02/06/2017,6086039,157.95,Revenue,CRD89440,Royal Mail Group Ltd                    
Shropshire,00GG,"Cultural, Environmental, Regulatory and Planning Services  - Culture and heritage",Supplies And Services - Miscellaneous Expenses        ,02/06/2017,6086039,585.56,Revenue,CRD89440,Royal Mail Group Ltd                    
Shropshire,00GG,"Cultural, Environmental, Regulatory and Planning Services  - Culture and heritage",Supplies And Services - Miscellaneous Expenses        ,02/06/2017,6086039,527.44,Revenue,CRD89440,Royal Mail Group Ltd                    
Shropshire,00GG,"Cultural, Environmental, Regulatory and Planning Services  - Culture and heritage",Supplies And Services - Miscellaneous Expenses        ,02/06/2017,6086039,80.00,Revenue,CRD89440,Royal Mail Group Ltd                    
Shropshire,00GG,"Cultural, Environmental, Regulatory and Planning Services  - Culture and heritage",Supplies And Services - Printing & Stationery         ,02/06/2017,6100832,20.00,Revenue,CRD97218,Rich Evans Design                       
Shropshire,00GG,"Cultural, Environmental, Regulatory and Planning Services  - Culture and heritage",Supplies And Services - Equipt.  Furn. & Materials    ,02/06/2017,6083100,75.00,Revenue,CRD98093,Sse Audio Group Ltd                     
Shropshire,00GG,"Cultural, Environmental, Regulatory and Planning Services  - Culture and heritage",Supplies And Services - Equipt.  Furn. & Materials    ,02/06/2017,6083100,"10,623.20",Revenue,CRD98093,Sse Audio Group Ltd                     
Shropshire,00GG,"Cultural, Environmental, Regulatory and Planning Services  - Culture and heritage",Supplies And Services - Miscellaneous Expenses        ,02/06/2017,6088589,250.00,Revenue,CRD17978,Whats On Magazines Ltd                  
Shropshire,00GG,"Cultural, Environmental, Regulatory and Planning Services  - Culture and heritage",Supplies And Services - Miscellaneous Expenses        ,02/06/2017,6088589,750.00,Revenue,CRD17978,Whats On Magazines Ltd                  
Shropshire,00GG,"Cultural, Environmental, Regulatory and Planning Services  - Culture and heritage",Supplies And Services - Grants & Subscriptions        ,02/06/2017,6082975,714.00,Revenue,CRD88618,Gallowglass Ltd                         
Shropshire,00GG,"Cultural, Environmental, Regulatory and Planning Services  - Culture and heritage",Supplies And Services - Miscellaneous Expenses        ,02/06/2017,6086039,157.94,Revenue,CRD89440,Royal Mail Group Ltd                    
Shropshire,00GG,"Cultural, Environmental, Regulatory and Planning Services  - Culture and heritage",Supplies And Services - Miscellaneous Expenses        ,02/06/2017,6100832,70.00,Revenue,CRD97218,Rich Evans Design                       
Shropshire,00GG,"Cultural, Environmental, Regulatory and Planning Services  - Culture and heritage",Supplies And Services - Miscellaneous Expenses        ,02/06/2017,6099790,"2,500.00",Revenue,CRT02478,Barry Collings Entertainments           
Shropshire,00GG,"Cultural, Environmental, Regulatory and Planning Services  - Culture and heritage",Supplies And Services - Miscellaneous Expenses        ,02/06/2017,6099791,"5,246.62",Revenue,CRT05691,Star Acts                               
Shropshire,00GG,"Cultural, Environmental, Regulatory and Planning Services  - Culture and heritage",Supplies And Services - Communications & Computing    ,02/06/2017,6086039,50.00,Revenue,CRD89440,Royal Mail Group Ltd                    
Shropshire,00GG,"Cultural, Environmental, Regulatory and Planning Services  - Culture and heritage",Supplies And Services - Printing & Stationery         ,02/06/2017,6100832,940.00,Revenue,CRD97218,Rich Evans Design                       
Shropshire,00GG,Central Services - Trading undertakings,Supplies And Services - Equipt.  Furn. & Materials    ,02/06/2017,6083135,720.00,Revenue,CRD67226,The Clean Machine Direct Ltd            
Shropshire,00GG,Children's and Education Services - Other Strategic Functions,Employees - Supply Teachers-Sickness      ,02/06/2017,6086824,748.50,Revenue,CRD79591,Protocol Education Ltd                  
Shropshire,00GG,Children's and Education Services - Other Strategic Functions,Employees - Supply Teachers-Sickness      ,02/06/2017,6086825,420.00,Revenue,CRD79591,Protocol Education Ltd                  
Shropshire,00GG,None SeRCOP - Capital,Contingency/Other Capital - Capital - Professional Fees   ,02/06/2017,6094449,"1,540.96",Capital,CRD86493,The Design Buro (Coventry) Ltd          
Shropshire,00GG,None SeRCOP - Capital,Contingency/Other Capital - Capital - Exp On Grants & Loan,02/06/2017,6099542,"10,404.00",Capital,TOP29473,Redacted - Personal Information
Shropshire,00GG,None SeRCOP - Capital,Contingency/Other Capital - Capital - Exp On Grants & Loan,02/06/2017,6100634,"1,200.00",Capital,TOP29521,Redacted - Personal Information
Shropshire,00GG,None SeRCOP - Capital,Contingency/Other Capital - Capital - Construction/Conver ,02/06/2017,6091348,"14,003.97",Capital,CRD93313,Aggregate Industries Uk Ltd             
Shropshire,00GG,None SeRCOP - Capital,Contingency/Other Capital - Capital - Construction/Conver ,02/06/2017,6091348,"14,003.96",Capital,CRD93313,Aggregate Industries Uk Ltd             
Shropshire,00GG,None SeRCOP - Capital,Contingency/Other Capital - Capital - Construction/Conver ,02/06/2017,6085384,"12,273.14",Capital,CRD14706,R M W Electrical Services Ltd           
Shropshire,00GG,None SeRCOP - Capital,Contingency/Other Capital - Capital - Construction/Conver ,02/06/2017,6101171,"1,784.00",Capital,CRD81717,Severn Valley Window & Door Ltd         
Shropshire,00GG,None SeRCOP - Capital,Contingency/Other Capital - Capital - Construction/Conver ,02/06/2017,6085417,"2,985.00",Capital,CRD58052,D R & J Orritt                          
Shropshire,00GG,None SeRCOP - Capital,Contingency/Other Capital - Capital - Construction/Conver ,02/06/2017,6094215,"3,264.00",Capital,CRD83574,Nyke Energy Services Limited            
Shropshire,00GG,None SeRCOP - Capital,Contingency/Other Capital - Capital - Construction/Conver ,02/06/2017,6101158,"7,580.93",Capital,CRD44417,Pave Aways Ltd                          
Shropshire,00GG,None SeRCOP - Capital,Contingency/Other Capital - Capital - Professional Fees   ,02/06/2017,6091810,"1,500.00",Capital,CRT05647,Silk Sharples Jennings                  
Shropshire,00GG,Central Services - Trading Services,Supplies And Services - Equipt.  Furn. & Materials    ,02/06/2017,6086367,242.76,Revenue,CRD57984,Veolia Es (Uk) Ltd                      
Shropshire,00GG,Central Services - Trading Services,Supplies And Services - Equipt.  Furn. & Materials    ,02/06/2017,6086367,454.00,Revenue,CRD57984,Veolia Es (Uk) Ltd                      
Shropshire,00GG,Central Services - Trading Services,Supplies And Services - Equipt.  Furn. & Materials    ,02/06/2017,6089791,947.10,Revenue,CRD57984,Veolia Es (Uk) Ltd                      
Shropshire,00GG,Central Services - Trading Services,Supplies And Services - Equipt.  Furn. & Materials    ,02/06/2017,6089791,511.58,Revenue,CRD57984,Veolia Es (Uk) Ltd                      
Shropshire,00GG,Central Services - Trading Services,Supplies And Services - Equipt.  Furn. & Materials    ,02/06/2017,6089791,59.68,Revenue,CRD57984,Veolia Es (Uk) Ltd                      
Shropshire,00GG,Adult Social Care - Adults aged under 65 with learning disabilities,Premises Related - R & M Property Policy Group   ,02/06/2017,6098564,696.50,Revenue,CRD02106,Cooper & Williams Ltd                   
Shropshire,00GG,Adult Social Care - Adults aged under 65 with learning disabilities,Premises Related - Cleaning Costs                ,02/06/2017,6088546,75.00,Revenue,CRD87030,Inside & Out                            
Shropshire,00GG,Adult Social Care - Adults aged under 65 with learning disabilities,Premises Related - Cleaning Costs                ,02/06/2017,6088546,225.00,Revenue,CRD87030,Inside & Out                            
Shropshire,00GG,Adult Social Care - Adults aged under 65 with learning disabilities,Premises Related - Cleaning Costs                ,02/06/2017,6088546,180.00,Revenue,CRD87030,Inside & Out                            
Shropshire,00GG,Adult Social Care - Adults aged under 65 with learning disabilities,Premises Related - Cleaning Costs                ,02/06/2017,6088546,180.00,Revenue,CRD87030,Inside & Out                            
Shropshire,00GG,Adult Social Care - Adults aged under 65 with learning disabilities,Premises Related - Cleaning Costs                ,02/06/2017,6088546,225.00,Revenue,CRD87030,Inside & Out                            
Shropshire,00GG,"Cultural, Environmental, Regulatory and Planning Services  - Agricultural & Fisheries Services",Premises Related - R & M Property Policy Group   ,02/06/2017,6094179,624.00,Revenue,CRD02106,Cooper & Williams Ltd                   
Shropshire,00GG,"Cultural, Environmental, Regulatory and Planning Services  - Culture and heritage",Premises Related - Repair & Maint. General       ,02/06/2017,6094187,"1,192.50",Revenue,CRD12807,Pump Services (W-Ton) Ltd               
Shropshire,00GG,"Cultural, Environmental, Regulatory and Planning Services  - Street Cleansing (not chargeable to Highways)",Premises Related - Cleaning Costs                ,02/06/2017,6086634,"1,389.20",Revenue,CRD94366,Provac Cleaning Services Limited        
Shropshire,00GG,Central Services - Other Services,Employees - Support Staff                 ,02/06/2017,6088755,"53,104.45",Revenue,CRD99877,Matrix Scm Ltd                          
Shropshire,00GG,Central Services - Trading Services,Supplies And Services - Miscellaneous Expenses        ,02/06/2017,6093784,"-1,730.70",Revenue,CRT05685,Redacted - Commercial Interest
Shropshire,00GG,Central Services - Trading Services,Supplies And Services - Miscellaneous Expenses        ,02/06/2017,6093784,"1,952.50",Revenue,CRT05685,Redacted - Commercial Interest
Shropshire,00GG,Central Services - Other Services,Supplies And Services - Miscellaneous Expenses        ,02/06/2017,6064528,"11,500.00",Revenue,TOP29221,Irwin Mitchell Llp (Client Account)     
Shropshire,00GG,Central Services - Other Services,Supplies And Services - Grants & Subscriptions        ,02/06/2017,6095751,"6,791.67",Revenue,CRD87402,Shrewsbury Town Council                 
Shropshire,00GG,Central Services - Other Services,Supplies And Services - Grants & Subscriptions        ,02/06/2017,6088361,420.00,Revenue,CRD92701,Vocalink                                
Shropshire,00GG,Central Services - Trading Services,Supplies And Services - Communications & Computing    ,02/06/2017,6082140,456.00,Revenue,CRD56358,Stone Computers Ltd                     
Shropshire,00GG,Central Services - Trading Services,Supplies And Services - Communications & Computing    ,02/06/2017,6100748,"-1,500.00",Revenue,CRD97381,Atlantic Data Ltd                       
Shropshire,00GG,Central Services - Trading Services,Supplies And Services - Communications & Computing    ,02/06/2017,6100748,"9,292.17",Revenue,CRD97381,Atlantic Data Ltd                       
Shropshire,00GG,Central Services - Trading Services,Supplies And Services - Communications & Computing    ,02/06/2017,6100749,"5,620.00",Revenue,CRD97381,Atlantic Data Ltd                       
Shropshire,00GG,Central Services - Trading Services,Supplies And Services - Communications & Computing    ,02/06/2017,6084980,"2,607.00",Revenue,CRT05562,Sandhill Consiltants Ltd                
Shropshire,00GG,Central Services - Trading Services,Supplies And Services - Miscellaneous Expenses        ,02/06/2017,6084858,"8,100.00",Revenue,CRT02502,Roc Search Limited                      
Shropshire,00GG,Central Services - Trading Services,Supplies And Services - Equipt.  Furn. & Materials    ,02/06/2017,6077805,"1,111.74",Revenue,CRD69896,Iron Mountain  Osdp (Uk) Ltd            
Shropshire,00GG,Central Services - Trading Services,Supplies And Services - Equipt.  Furn. & Materials    ,02/06/2017,6085229,"19,451.00",Revenue,CRD95722,Thomson Reuters                         
Shropshire,00GG,Central Services - Trading Services,Supplies And Services - Miscellaneous Expenses        ,02/06/2017,6092631,600.00,Revenue,CRD99350,Miss Claire Briggs                      
Shropshire,00GG,Central Services - Trading Services,Supplies And Services - Miscellaneous Expenses        ,02/06/2017,6092630,750.00,Revenue,CRT03658,Ms Sarah Anderson                       
Shropshire,00GG,Central Services - Coroners' Court Services,Supplies And Services - Miscellaneous Expenses        ,02/06/2017,6091867,190.00,Revenue,CRD95350,Williams Funerals (Telford) Ltd         
Shropshire,00GG,Central Services - Coroners' Court Services,Supplies And Services - Miscellaneous Expenses        ,02/06/2017,6091865,"1,966.60",Revenue,CRD95477,Shrewsbury Pathologists                 
Shropshire,00GG,Central Services - Coroners' Court Services,Supplies And Services - Miscellaneous Expenses        ,02/06/2017,6092632,553.80,Revenue,CRT05670,Jsps Uk                                 
Shropshire,00GG,Central Services - Coroners' Court Services,Supplies And Services - Miscellaneous Expenses        ,02/06/2017,6091867,500.00,Revenue,CRD95350,Williams Funerals (Telford) Ltd         
Shropshire,00GG,Central Services - Coroners' Court Services,Supplies And Services - Miscellaneous Expenses        ,02/06/2017,6091865,"2,089.00",Revenue,CRD95477,Shrewsbury Pathologists                 
Shropshire,00GG,Central Services - Coroners' Court Services,Supplies And Services - Miscellaneous Expenses        ,02/06/2017,6093752,624.75,Revenue,TOP29514,Dr D Cvijan                             
Shropshire,00GG,None SeRCOP - Balance Sheet,Holding Accounts - Holding Accounts              ,02/06/2017,6096285,"5,594.00",Revenue,CRT05528,Burford Academy                         
Shropshire,00GG,"Cultural, Environmental, Regulatory and Planning Services  - Environmental initiatives",Supplies And Services - Miscellaneous Expenses        ,05/06/2017,6100072,"3,946.05",Revenue,CRD98046,Dgl Environment Ltd                     
Shropshire,00GG,"Cultural, Environmental, Regulatory and Planning Services  - Development Control",Employees - Indirect Employee Expenses    ,05/06/2017,6102112,"1,056.90",Revenue,CRT05544,Templeton Planning Services Limited     
Shropshire,00GG,"Cultural, Environmental, Regulatory and Planning Services  - Recreation and sport",Premises Related - Cleaning Costs                ,05/06/2017,6081327,"7,000.00",Revenue,CRT02770,William Brookes Academy Trust           
Shropshire,00GG,"Cultural, Environmental, Regulatory and Planning Services  - Recreation and sport",Premises Related - Energy Costs                  ,05/06/2017,6081327,"26,517.34",Revenue,CRT02770,William Brookes Academy Trust           
Shropshire,00GG,"Cultural, Environmental, Regulatory and Planning Services  - Recreation and sport",Premises Related - Energy Costs                  ,05/06/2017,6081327,"9,716.21",Revenue,CRT02770,William Brookes Academy Trust           
Shropshire,00GG,"Cultural, Environmental, Regulatory and Planning Services  - Recreation and sport",Premises Related - Repair & Maint. General       ,05/06/2017,6081327,"3,354.17",Revenue,CRT02770,William Brookes Academy Trust           
Shropshire,00GG,"Cultural, Environmental, Regulatory and Planning Services  - Recreation and sport",Premises Related - Rates                         ,05/06/2017,6081327,"5,287.59",Revenue,CRT02770,William Brookes Academy Trust           
Shropshire,00GG,"Cultural, Environmental, Regulatory and Planning Services  - Recreation and sport",Premises Related - Water                         ,05/06/2017,6081327,"1,660.69",Revenue,CRT02770,William Brookes Academy Trust           
Shropshire,00GG,None SeRCOP - Balance Sheet,Current Assets - Payments In Advance           ,05/06/2017,6086720,"6,997.72",Revenue,CRD88706,Jcb Finance Ltd                         
Shropshire,00GG,Children's and Education Services - Early Years,Third Party Payments - Other Committees/Establishmts ,05/06/2017,6099527,"1,770.00",Revenue,NUS00096,Mount Lane Day Nursery                  
Shropshire,00GG,Children's and Education Services - Early Years,Third Party Payments - Other Committees/Establishmts ,05/06/2017,6099526,"1,770.00",Revenue,NUS00096,Mount Lane Day Nursery                  
Shropshire,00GG,Children's and Education Services - Directorate,Premises Related - Rents                         ,05/06/2017,6089590,"4,130.00",Revenue,CRD95793,Shropshire Community Health Nhs Trust   
Shropshire,00GG,Adult Social Care - Older people (aged 65 or over) including older mentally ill,Third Party Payments - Private Contractors           ,05/06/2017,6100648,529.20,Revenue,CRT03043,Phoenix Homecare And Support Ltd        
Shropshire,00GG,Adult Social Care - Older people (aged 65 or over) including older mentally ill,Third Party Payments - Private Contractors           ,05/06/2017,6100650,"1,533.40",Revenue,CRT03043,Phoenix Homecare And Support Ltd        
Shropshire,00GG,Public Health - Other,Supplies And Services - Equipt.  Furn. & Materials    ,05/06/2017,6081976,"1,825.00",Revenue,CRD61688,Gasp                                    
Shropshire,00GG,Adult Social Care - Older people (aged 65 or over) including older mentally ill,Supplies And Services - Equipt.  Furn. & Materials    ,05/06/2017,6091729,960.00,Revenue,CRT05665,Mr P Tennant                            
Shropshire,00GG,Adult Social Care - Adults aged under 65 with physical disability or sensory impairment,Third Party Payments - Private Contractors           ,05/06/2017,6095018,"3,474.14",Revenue,CRD06791,Have A Care                             
Shropshire,00GG,Adult Social Care - Adults aged under 65 with mental health needs,Third Party Payments - Private Contractors           ,05/06/2017,6100617,24.00,Revenue,CRT01833,Shropshire Rcc                          
Shropshire,00GG,Adult Social Care - Adults aged under 65 with mental health needs,Third Party Payments - Private Contractors           ,05/06/2017,6100617,"1,312.50",Revenue,CRT01833,Shropshire Rcc                          
Shropshire,00GG,Children's and Education Services  - School and Pupil Support,Transport Related   - Contracts                     ,05/06/2017,6102208,"2,793.57",Revenue,CRD16442,R & B Travel                            
Shropshire,00GG,Children's and Education Services  - School and Pupil Support,Transport Related   - Contracts                     ,05/06/2017,6102206,480.00,Revenue,CRD68272,Central Taxis Ltd T/A Go Carz           
Shropshire,00GG,Children's and Education Services  - School and Pupil Support,Transport Related   - Contracts                     ,05/06/2017,6102205,582.40,Revenue,CRD77164,Jeff'S Taxis & Minibuses                
Shropshire,00GG,Children's and Education Services  - School and Pupil Support,Transport Related   - Contracts                     ,05/06/2017,6102204,773.50,Revenue,CRD77164,Jeff'S Taxis & Minibuses                
Shropshire,00GG,Children's and Education Services  - School and Pupil Support,Transport Related   - Contracts                     ,05/06/2017,6102207,500.00,Revenue,CRD90254,Access Cars Shrewsbury Ltd              
Shropshire,00GG,Children's and Education Services  - School and Pupil Support,Transport Related   - Contracts                     ,05/06/2017,6102203,"1,264.00",Revenue,CRD94294,All Aboard Shropshire                   
Shropshire,00GG,Children's and Education Services  - Home to College Transport,Transport Related   - Contracts                     ,05/06/2017,6102208,417.43,Revenue,CRD16442,R & B Travel                            
Shropshire,00GG,Children's and Education Services  - School and Pupil Support,Transport Related   - Contracts                     ,05/06/2017,6102205,145.60,Revenue,CRD77164,Jeff'S Taxis & Minibuses                
Shropshire,00GG,"Cultural, Environmental, Regulatory and Planning Services  - Culture and heritage",Supplies And Services - Miscellaneous Expenses        ,05/06/2017,6080389,476.67,Revenue,CRT05350,Trafalgar Releasing Ltd                 
Shropshire,00GG,None SeRCOP - Balance Sheet,Contingency/Other Capital - Suspense                      ,05/06/2017,6099693,"1,090.55",Revenue,CRD89031,Rsp Rail Travel Account                 
Shropshire,00GG,None SeRCOP - Capital,Contingency/Other Capital - Capital - Construction/Conver ,05/06/2017,6094448,"99,862.50",Capital,CRD82621,J Harper & Sons (Leominster) Ltd        
Shropshire,00GG,None SeRCOP - Capital,Contingency/Other Capital - Capital - Exp On Grants & Loan,05/06/2017,6102080,"1,135.78",Capital,CRD94263,Mears Group Plc                         
Shropshire,00GG,None SeRCOP - Capital,Contingency/Other Capital - Capital - Exp On Grants & Loan,05/06/2017,6102078,"5,175.00",Capital,TOP23006,Shire Lift Services Ltd                 
Shropshire,00GG,None SeRCOP - Capital,Contingency/Other Capital - Capital - Construction/Conver ,05/06/2017,6100763,"41,267.28",Capital,STX00550,Splitlath Ltd                           
Shropshire,00GG,None SeRCOP - Capital,Contingency/Other Capital - Capital - Construction/Conver ,05/06/2017,6100763,"41,267.28",Capital,STX00550,Splitlath Ltd                           
Shropshire,00GG,None SeRCOP - Capital,Contingency/Other Capital - Capital - Construction/Conver ,05/06/2017,6102092,"27,573.44",Capital,STX00549,Aspect Construction Contracts (Grp) Ltd 
Shropshire,00GG,None SeRCOP - Capital,Contingency/Other Capital - Capital - Construction/Conver ,05/06/2017,6102092,"27,573.44",Capital,STX00549,Aspect Construction Contracts (Grp) Ltd 
Shropshire,00GG,None SeRCOP - Capital,Contingency/Other Capital - Capital - Construction/Conver ,05/06/2017,6102092,"13,734.45",Capital,STX00549,Aspect Construction Contracts (Grp) Ltd 
Shropshire,00GG,None SeRCOP - Capital,Contingency/Other Capital - Capital - Construction/Conver ,05/06/2017,6102092,"13,734.45",Capital,STX00549,Aspect Construction Contracts (Grp) Ltd 
Shropshire,00GG,None SeRCOP - Capital,Contingency/Other Capital - Capital - Plant  Equipt & Furn,05/06/2017,6092473,863.64,Capital,CRD40116,Morley'S Of Bicester Ltd                
Shropshire,00GG,Central Services - Trading Services,Employees - Support Staff                 ,05/06/2017,6101861,487.20,Revenue,CRD89257,Resourcing Group                        
Shropshire,00GG,Central Services - Trading Services,Income - Other Services                ,05/06/2017,6089528,-183.30,Revenue,CRD86012,Meres And Mosses Housing Association    
Shropshire,00GG,Central Services - Trading Services,Income - Other Services                ,05/06/2017,6089528,"-1,833.00",Revenue,CRD86012,Meres And Mosses Housing Association    
Shropshire,00GG,Central Services - Trading Services,Premises Related - Rents                         ,05/06/2017,6087789,822.00,Revenue,CRD86012,Meres And Mosses Housing Association    
Shropshire,00GG,"Cultural, Environmental, Regulatory and Planning Services  - Agricultural & Fisheries Services",Premises Related - Water                         ,05/06/2017,6100069,603.10,Revenue,CRD15533,Severn Trent Water Ltd                  
Shropshire,00GG,"Cultural, Environmental, Regulatory and Planning Services  - Recreation and sport",Premises Related - Repair & Maint. General       ,05/06/2017,6102094,883.00,Revenue,STX00396,Potters Electrical Ltd                  
Shropshire,00GG,"Cultural, Environmental, Regulatory and Planning Services  - Recreation and sport",Premises Related - Repair & Maint. General       ,05/06/2017,6099732,"13,390.00",Revenue,CRD92181,Escape Fitness Ltd                      
Shropshire,00GG,"Cultural, Environmental, Regulatory and Planning Services  - Recreation and sport",Premises Related - Repair & Maint. General       ,05/06/2017,6102093,665.00,Revenue,STX00396,Potters Electrical Ltd                  
Shropshire,00GG,Central Services - Other Services,Premises Related - Repair & Maint. General       ,05/06/2017,6101863,177.77,Revenue,CRT03780,Johnsons Moving Services Ltd            
Shropshire,00GG,Central Services - Other Services,Premises Related - Repair & Maint. General       ,05/06/2017,6101863,"2,338.19",Revenue,CRT03780,Johnsons Moving Services Ltd            
Shropshire,00GG,Children's and Education Services - Non School Funding,Supplies And Services - Communications & Computing    ,05/06/2017,6101706,"3,132.85",Revenue,CRD80645,Northgate Public Services (Uk) Ltd      
Shropshire,00GG,Central Services - Trading Services,Supplies And Services - Communications & Computing    ,05/06/2017,6081425,"3,263.46",Revenue,CRD97605,Whistl North Limited                    
Shropshire,00GG,Central Services - Trading Services,Supplies And Services - Miscellaneous Expenses        ,05/06/2017,6101808,"4,270.48",Revenue,STX00250,Premier Carpets & Flooring              
Shropshire,00GG,Central Services - Trading Services,Supplies And Services - Miscellaneous Expenses        ,05/06/2017,6091600,"1,845.00",Revenue,CRD80140,Noss Ltd                                
Shropshire,00GG,Central Services - Trading Services,Supplies And Services - Miscellaneous Expenses        ,05/06/2017,6102027,"1,513.95",Revenue,CRT01381,Occupational Health Medical Limited     
Shropshire,00GG,Central Services - Trading Services,Supplies And Services - Miscellaneous Expenses        ,05/06/2017,6087891,"4,312.50",Revenue,CRD91359,Penna Plc                               
Shropshire,00GG,Central Services - Trading Services,Supplies And Services - Miscellaneous Expenses        ,05/06/2017,6087888,"10,075.00",Revenue,CRD91359,Penna Plc                               
Shropshire,00GG,Central Services - Trading Services,Supplies And Services - Miscellaneous Expenses        ,05/06/2017,6087890,"5,750.00",Revenue,CRD91359,Penna Plc                               
Shropshire,00GG,Central Services - Trading Services,Supplies And Services - Miscellaneous Expenses        ,05/06/2017,6087889,"10,260.00",Revenue,CRD91359,Penna Plc                               
Shropshire,00GG,Central Services - Trading Services,Supplies And Services - Miscellaneous Expenses        ,05/06/2017,6087891,"4,312.50",Revenue,CRD91359,Penna Plc                               
Shropshire,00GG,Central Services - Trading Services,Supplies And Services - Miscellaneous Expenses        ,05/06/2017,6091855,750.00,Revenue,CRD69597,Mr R Hadley                             
Shropshire,00GG,Central Services - Trading Services,Supplies And Services - Miscellaneous Expenses        ,05/06/2017,6091856,900.00,Revenue,CRD76106,Miss Adreeja Chatterjee                 
Shropshire,00GG,Central Services - Coroners' Court Services,Third Party Payments - Health Authorities            ,05/06/2017,6093751,888.00,Revenue,CRD95350,Williams Funerals (Telford) Ltd         
Shropshire,00GG,Central Services - Coroners' Court Services,Third Party Payments - Health Authorities            ,05/06/2017,6093751,592.00,Revenue,CRD95350,Williams Funerals (Telford) Ltd         
Shropshire,00GG,Children's and Education Services - Advisory,Supplies And Services - Miscellaneous Expenses        ,06/06/2017,6084916,493.95,Revenue,CRD30876,Jennys Outside Catering                 
Shropshire,00GG,Central Services - Trading undertakings,Supplies And Services - Catering                      ,06/06/2017,6089556,423.80,Revenue,CRD75307,Radnor Hills Minerals Water Company Ltd 
Shropshire,00GG,Highways and Transport Services - Management & Support Services,Transport Related   - Transport Recharges           ,06/06/2017,6095877,741.92,Revenue,CRD91207,Lex Autolease Ltd                       
Shropshire,00GG,Highways and Transport Services - Management & Support Services,Transport Related   - Direct Transport Costs        ,06/06/2017,6095881,"4,230.01",Revenue,CRT05680,Uk Fuels Limited                        
Shropshire,00GG,Highways and Transport Services - Management & Support Services,Transport Related   - Direct Transport Costs        ,06/06/2017,6095881,138.86,Revenue,CRT05680,Uk Fuels Limited                        
Shropshire,00GG,"Cultural, Environmental, Regulatory and Planning Services  - Culture and heritage",Supplies And Services - Grants & Subscriptions        ,06/06/2017,6100754,900.00,Revenue,CRD72457,Disability Arts In Shropshire           
Shropshire,00GG,"Cultural, Environmental, Regulatory and Planning Services  - Culture and heritage",Supplies And Services - Grants & Subscriptions        ,06/06/2017,6100753,"1,463.00",Revenue,CRT01000,Wem Town Hall Community Trust Ltd       
Shropshire,00GG,"Cultural, Environmental, Regulatory and Planning Services  - Open spaces",Premises Related - Repair & Maint. General       ,06/06/2017,6096296,4.98,Revenue,CRD71177,Radiodetection Ltd                      
Shropshire,00GG,"Cultural, Environmental, Regulatory and Planning Services  - Open spaces",Premises Related - Repair & Maint. General       ,06/06/2017,6096296,"1,446.00",Revenue,CRD71177,Radiodetection Ltd                      
Shropshire,00GG,Children's and Education Services - Social Care and Safeguards Looked After Children,Third Party Payments - Private Contractors           ,06/06/2017,6103545,"4,899.19",Revenue,CRD82539,Keys Education & Care Limited           
Shropshire,00GG,Children's and Education Services - Social Care and Safeguards Looked After Children,Third Party Payments - Private Contractors           ,06/06/2017,6103546,"4,494.29",Revenue,CRD82539,Keys Education & Care Limited           
Shropshire,00GG,Children's and Education Services - Social Care and Safeguards Looked After Children,Third Party Payments - Private Contractors           ,06/06/2017,6103547,"12,257.14",Revenue,CRD82539,Keys Education & Care Limited           
Shropshire,00GG,Children's and Education Services - Social Care and Safeguards Looked After Children,Third Party Payments - Private Contractors           ,06/06/2017,6103532,"4,350.00",Revenue,CRT05012,Quality Protects Children Ltd           
Shropshire,00GG,Children's and Education Services - Social Care and Safeguards Looked After Children,Third Party Payments - Private Contractors           ,06/06/2017,6103533,"10,628.57",Revenue,CRT05012,Quality Protects Children Ltd           
Shropshire,00GG,Children's and Education Services - Social Care and Safeguards Looked After Children,Third Party Payments - Private Contractors           ,06/06/2017,6103534,"6,421.43",Revenue,CRT05012,Quality Protects Children Ltd           
Shropshire,00GG,Children's and Education Services - Social Care and Safeguards Looked After Children,Third Party Payments - Private Contractors           ,06/06/2017,6103535,"4,007.14",Revenue,CRT05012,Quality Protects Children Ltd           
Shropshire,00GG,Children's and Education Services - Social Care and Safeguards Looked After Children,Third Party Payments - Private Contractors           ,06/06/2017,6103536,"7,200.00",Revenue,CRT05012,Quality Protects Children Ltd           
Shropshire,00GG,Children's and Education Services - Social Care and Safeguards Looked After Children,Third Party Payments - Private Contractors           ,06/06/2017,6103537,"10,285.71",Revenue,CRT05012,Quality Protects Children Ltd           
Shropshire,00GG,Children's and Education Services - Social Care and Safeguards Looked After Children,Third Party Payments - Private Contractors           ,06/06/2017,6103538,"6,214.29",Revenue,CRT05012,Quality Protects Children Ltd           
Shropshire,00GG,Children's and Education Services - Social Care and Safeguards Looked After Children,Third Party Payments - Private Contractors           ,06/06/2017,6103539,"3,642.86",Revenue,CRT05012,Quality Protects Children Ltd           
Shropshire,00GG,Children's and Education Services - Social Care and Safeguards Looked After Children,Premises Related - Rents                         ,06/06/2017,6103549,"4,371.30",Revenue,CRT01062,Saail                                   
Shropshire,00GG,Children's and Education Services - Social Care and Safeguards Looked After Children,Third Party Payments - Private Contractors           ,06/06/2017,6103540,"1,628.57",Revenue,CRT05038,Carnelian (Platinum Servs For Children) 
Shropshire,00GG,Children's and Education Services - Social Care and Safeguards Looked After Children,Third Party Payments - Private Contractors           ,06/06/2017,6103541,"7,800.00",Revenue,CRT05038,Carnelian (Platinum Servs For Children) 
Shropshire,00GG,Children's and Education Services - Social Care and Safeguards Looked After Children,Premises Related - Rents                         ,06/06/2017,6103550,"1,300.00",Revenue,CRT05254,Just One Recruitment & Training Ltd     
Shropshire,00GG,Children's and Education Services - Social Care and Safeguards Looked After Children,Third Party Payments - Private Contractors           ,06/06/2017,6103550,"5,461.40",Revenue,CRT05254,Just One Recruitment & Training Ltd     
Shropshire,00GG,Children's and Education Services - Social Care and Safeguards Looked After Children,Third Party Payments - Private Contractors           ,06/06/2017,6103530,"3,361.33",Revenue,CRD98668,Park Foster Care Limited                
Shropshire,00GG,Children's and Education Services - Social Care and Safeguards Looked After Children,Third Party Payments - Private Contractors           ,06/06/2017,6103531,"2,927.33",Revenue,CRD98668,Park Foster Care Limited                
Shropshire,00GG,Adult Social Care - Older people (aged 65 or over) including older mentally ill,Third Party Payments - Private Contractors           ,06/06/2017,6095686,662.67,Revenue,CRT03383,Suncare Home Care Ltd                   
Shropshire,00GG,Adult Social Care - Older people (aged 65 or over) including older mentally ill,Third Party Payments - Private Contractors           ,06/06/2017,6095689,"1,138.80",Revenue,CRT03383,Suncare Home Care Ltd                   
Shropshire,00GG,Adult Social Care - Older people (aged 65 or over) including older mentally ill,Third Party Payments - Private Contractors           ,06/06/2017,6095692,"1,862.34",Revenue,CRT03383,Suncare Home Care Ltd                   
Shropshire,00GG,Adult Social Care - Older people (aged 65 or over) including older mentally ill,Third Party Payments - Private Contractors           ,06/06/2017,6102225,515.34,Revenue,CRD00422,Allied Healthcare Group Ltd             
Shropshire,00GG,Adult Social Care - Older people (aged 65 or over) including older mentally ill,Third Party Payments - Private Contractors           ,06/06/2017,6102226,515.34,Revenue,CRD00422,Allied Healthcare Group Ltd             
Shropshire,00GG,Adult Social Care - Older people (aged 65 or over) including older mentally ill,Third Party Payments - Private Contractors           ,06/06/2017,6102229,"3,584.00",Revenue,CRT01442,Affinity Homecare Shrewsbury Limited    
Shropshire,00GG,Public Health - Other,Employees - Indirect Employee Expenses    ,06/06/2017,6094774,518.70,Revenue,CRD41848,Clockwork Org Ltd T/A Travail Empl Grp  
Shropshire,00GG,Public Health - Other,Supplies And Services - Communications & Computing    ,06/06/2017,6081977,"10,988.46",Revenue,CRD81880,Software Box Ltd                        
Shropshire,00GG,Public Health - Other,Third Party Payments - Private Contractors           ,06/06/2017,6081507,795.00,Revenue,CRD82043,Orion Medical Supplies Ltd              
Shropshire,00GG,Adult Social Care - Older people (aged 65 or over) including older mentally ill,Supplies And Services - Services/Allowances           ,06/06/2017,6102423,40.50,Revenue,CRD91246,Tunstall Health Care (Uk) Ltd           
Shropshire,00GG,Adult Social Care - Older people (aged 65 or over) including older mentally ill,Supplies And Services - Services/Allowances           ,06/06/2017,6102423,19.50,Revenue,CRD91246,Tunstall Health Care (Uk) Ltd           
Shropshire,00GG,Adult Social Care - Older people (aged 65 or over) including older mentally ill,Supplies And Services - Services/Allowances           ,06/06/2017,6102423,749.40,Revenue,CRD91246,Tunstall Health Care (Uk) Ltd           
Shropshire,00GG,Adult Social Care - Older people (aged 65 or over) including older mentally ill,Third Party Payments - Private Contractors           ,06/06/2017,6038409,"45,553.34",Revenue,CRD70280,Citizens Advice Shropshire              
Shropshire,00GG,Adult Social Care - Adults aged under 65 with learning disabilities,Third Party Payments - Private Contractors           ,06/06/2017,6103528,"4,167.20",Revenue,CRD86030,Condover College Ltd                    
Shropshire,00GG,Adult Social Care - Adults aged under 65 with learning disabilities,Third Party Payments - Private Contractors           ,06/06/2017,6103566,"3,600.00",Revenue,CRD86030,Condover College Ltd                    
Shropshire,00GG,Adult Social Care - Adults aged under 65 with learning disabilities,Third Party Payments - Private Contractors           ,06/06/2017,6103567,"3,600.00",Revenue,CRD86030,Condover College Ltd                    
Shropshire,00GG,Adult Social Care - Adults aged under 65 with learning disabilities,Third Party Payments - Private Contractors           ,06/06/2017,6103577,"2,400.00",Revenue,CRD86030,Condover College Ltd                    
Shropshire,00GG,Adult Social Care - Adults aged under 65 with learning disabilities,Third Party Payments - Private Contractors           ,06/06/2017,6103564,"2,240.00",Revenue,CRD86030,Condover College Ltd                    
Shropshire,00GG,Adult Social Care - Adults aged under 65 with learning disabilities,Third Party Payments - Private Contractors           ,06/06/2017,6103565,"2,800.00",Revenue,CRD86030,Condover College Ltd                    
Shropshire,00GG,Adult Social Care - Adults aged under 65 with learning disabilities,Third Party Payments - Private Contractors           ,06/06/2017,6103578,"1,262.08",Revenue,CRD86030,Condover College Ltd                    
Shropshire,00GG,Adult Social Care - Adults aged under 65 with learning disabilities,Third Party Payments - Private Contractors           ,06/06/2017,6103562,"5,750.00",Revenue,CRD86030,Condover College Ltd                    
Shropshire,00GG,Adult Social Care - Adults aged under 65 with learning disabilities,Third Party Payments - Private Contractors           ,06/06/2017,6103572,"5,750.00",Revenue,CRD86030,Condover College Ltd                    
Shropshire,00GG,Adult Social Care - Adults aged under 65 with learning disabilities,Third Party Payments - Private Contractors           ,06/06/2017,6103573,"2,447.07",Revenue,CRD86030,Condover College Ltd                    
Shropshire,00GG,Adult Social Care - Adults aged under 65 with learning disabilities,Third Party Payments - Private Contractors           ,06/06/2017,6103575,"1,800.00",Revenue,CRD86030,Condover College Ltd                    
Shropshire,00GG,Adult Social Care - Adults aged under 65 with learning disabilities,Third Party Payments - Private Contractors           ,06/06/2017,6103576,"5,750.00",Revenue,CRD86030,Condover College Ltd                    
Shropshire,00GG,Adult Social Care - Adults aged under 65 with learning disabilities,Third Party Payments - Private Contractors           ,06/06/2017,6103579,"1,500.00",Revenue,CRD86030,Condover College Ltd                    
Shropshire,00GG,Adult Social Care - Adults aged under 65 with learning disabilities,Third Party Payments - Private Contractors           ,06/06/2017,6103568,"7,820.00",Revenue,CRD86030,Condover College Ltd                    
Shropshire,00GG,Adult Social Care - Adults aged under 65 with learning disabilities,Third Party Payments - Private Contractors           ,06/06/2017,6103569,"5,750.00",Revenue,CRD86030,Condover College Ltd                    
Shropshire,00GG,Adult Social Care - Adults aged under 65 with learning disabilities,Third Party Payments - Private Contractors           ,06/06/2017,6103570,650.00,Revenue,CRD86030,Condover College Ltd                    
Shropshire,00GG,Adult Social Care - Adults aged under 65 with learning disabilities,Third Party Payments - Private Contractors           ,06/06/2017,6103574,"5,750.00",Revenue,CRD86030,Condover College Ltd                    
Shropshire,00GG,Housing Services - Other Welfare Services,Supplies And Services - Miscellaneous Expenses        ,06/06/2017,6101740,"17,625.00",Revenue,CRD94263,Mears Group Plc                         
Shropshire,00GG,Housing Services - Homelessness,Premises Related - Rents                         ,06/06/2017,6101764,"1,392.84",Revenue,RAT00020,Bridgnorth Housing Special Rent         
Shropshire,00GG,Housing Services - Homelessness,Premises Related - Rents                         ,06/06/2017,6102554,"1,645.00",Revenue,CRD83320,The Raven Hotel                         
Shropshire,00GG,Housing Services - Homelessness,Premises Related - Rents                         ,06/06/2017,6102555,"1,595.00",Revenue,CRD83320,The Raven Hotel                         
Shropshire,00GG,Housing Services - Homelessness,Premises Related - Rents                         ,06/06/2017,6102556,"1,645.00",Revenue,CRD83320,The Raven Hotel                         
Shropshire,00GG,Housing Services - Homelessness,Premises Related - Rents                         ,06/06/2017,6102563,"3,690.00",Revenue,CRD93610,Oakbank Bed & Breakfast                 
Shropshire,00GG,Housing Services - Homelessness,Premises Related - Rents                         ,06/06/2017,6102562,"2,940.00",Revenue,CRD93610,Oakbank Bed & Breakfast                 
Shropshire,00GG,Housing Services - Homelessness,Premises Related - Rents                         ,06/06/2017,6102579,"1,375.00",Revenue,CRD97631,The Firs Guest House                    
Shropshire,00GG,Housing Services - Homelessness,Premises Related - Rents                         ,06/06/2017,6102577,"2,400.00",Revenue,CRD97631,The Firs Guest House                    
Shropshire,00GG,Housing Services - Homelessness,Premises Related - Rents                         ,06/06/2017,6102560,"2,480.00",Revenue,CRD97631,The Firs Guest House                    
Shropshire,00GG,Housing Services - Homelessness,Premises Related - Rents                         ,06/06/2017,6102576,"1,650.00",Revenue,CRD97631,The Firs Guest House                    
Shropshire,00GG,Housing Services - Homelessness,Premises Related - Rents                         ,06/06/2017,6102561,"1,705.00",Revenue,CRD97631,The Firs Guest House                    
Shropshire,00GG,Housing Services - Homelessness,Premises Related - Rents                         ,06/06/2017,6102557,"1,445.00",Revenue,CRD97631,The Firs Guest House                    
Shropshire,00GG,Housing Services - Homelessness,Premises Related - Rents                         ,06/06/2017,6102574,660.00,Revenue,CRD97631,The Firs Guest House                    
Shropshire,00GG,Housing Services - Homelessness,Premises Related - Rents                         ,06/06/2017,6102558,"1,840.00",Revenue,CRD97631,The Firs Guest House                    
Shropshire,00GG,Housing Services - Homelessness,Premises Related - Rents                         ,06/06/2017,6102559,"1,705.00",Revenue,CRD97631,The Firs Guest House                    
Shropshire,00GG,Environment & Regulatory - Regulatory Services,Supplies And Services - Miscellaneous Expenses        ,06/06/2017,6083174,33.80,Revenue,CRD95677,Pughs Funeral Directors                 
Shropshire,00GG,Environment & Regulatory - Regulatory Services,Supplies And Services - Miscellaneous Expenses        ,06/06/2017,6083174,838.00,Revenue,CRD95677,Pughs Funeral Directors                 
Shropshire,00GG,Environment & Regulatory - Regulatory Services,Supplies And Services - Grants & Subscriptions        ,06/06/2017,6098248,"1,523.20",Revenue,CRD88746,Patrol                                  
Shropshire,00GG,"Cultural, Environmental, Regulatory and Planning Services  - Culture and heritage",Supplies And Services - Miscellaneous Expenses        ,06/06/2017,6092517,760.00,Revenue,CRD88543,John Good Limited                       
Shropshire,00GG,"Cultural, Environmental, Regulatory and Planning Services  - Culture and heritage",Supplies And Services - Miscellaneous Expenses        ,06/06/2017,6100834,"6,129.00",Revenue,CRT01797,Precision Colour Printing Ltd           
Shropshire,00GG,"Cultural, Environmental, Regulatory and Planning Services  - Culture and heritage",Supplies And Services - Miscellaneous Expenses        ,06/06/2017,6100835,"3,743.18",Revenue,CRT01797,Precision Colour Printing Ltd           
Shropshire,00GG,"Cultural, Environmental, Regulatory and Planning Services  - Culture and heritage",Supplies And Services - Catering                      ,06/06/2017,6092565,743.46,Revenue,CRD87775,Matthew Clark Wholesale Ltd             
Shropshire,00GG,Children's and Education Services - Other Strategic Functions,Employees - Standards Fund/Training       ,06/06/2017,6086780,"1,879.00",Revenue,CRT03799,Maninder Bains                          
Shropshire,00GG,None SeRCOP - Capital,Contingency/Other Capital - Capital - Exp On Grants & Loan,06/06/2017,6102182,"4,297.32",Capital,TOP29105,Redacted - Personal Information
Shropshire,00GG,Central Services - Trading Services,Premises Related - Repair & Maint. General       ,06/06/2017,6103585,802.92,Revenue,CRD14706,R M W Electrical Services Ltd           
Shropshire,00GG,Central Services - Trading Services,Premises Related - R & M Property Policy Group   ,06/06/2017,6090932,631.89,Revenue,CRD94068,Srs Electrical Contractors Ltd          
Shropshire,00GG,"Cultural, Environmental, Regulatory and Planning Services  - Culture and heritage",Premises Related - Repair & Maint. General       ,06/06/2017,6103587,540.44,Revenue,CRD14706,R M W Electrical Services Ltd           
Shropshire,00GG,Central Services - Other Services,Supplies And Services - Grants & Subscriptions        ,06/06/2017,6101980,"6,608.00",Revenue,CRT02694,The New Saints F C Foundation Ltd       
Shropshire,00GG,"Cultural, Environmental, Regulatory and Planning Services - Community Development",Supplies And Services - Miscellaneous Expenses        ,06/06/2017,6101979,"2,079.17",Revenue,CRD98777,Energize Shropshire  Telford & Wrekin   
Shropshire,00GG,Children's and Education Services - Family Support Services,Supplies And Services - Grants & Subscriptions        ,06/06/2017,6092906,651.00,Revenue,CRD26992,Shrewsbury Sixth Form College           
Shropshire,00GG,Central Services - Trading Services,Supplies And Services - Miscellaneous Expenses        ,06/06/2017,5970305,500.00,Revenue,CRD86012,Meres And Mosses Housing Association    
Shropshire,00GG,Central Services - Trading Services,Supplies And Services - Communications & Computing    ,06/06/2017,6086607,"4,104.80",Revenue,CRD62269,Xma Ltd                                 
Shropshire,00GG,Central Services - Trading Services,Supplies And Services - Communications & Computing    ,06/06/2017,6096336,100.32,Revenue,CRD62269,Xma Ltd                                 
Shropshire,00GG,Central Services - Trading Services,Supplies And Services - Communications & Computing    ,06/06/2017,6096336,441.25,Revenue,CRD62269,Xma Ltd                                 
Shropshire,00GG,Central Services - Trading Services,Supplies And Services - Communications & Computing    ,06/06/2017,6083404,12.83,Revenue,CRD89440,Royal Mail Group Ltd                    
Shropshire,00GG,Central Services - Trading Services,Supplies And Services - Communications & Computing    ,06/06/2017,6083404,189.62,Revenue,CRD89440,Royal Mail Group Ltd                    
Shropshire,00GG,Central Services - Trading Services,Supplies And Services - Communications & Computing    ,06/06/2017,6083404,27.36,Revenue,CRD89440,Royal Mail Group Ltd                    
Shropshire,00GG,Central Services - Trading Services,Supplies And Services - Communications & Computing    ,06/06/2017,6083404,24.84,Revenue,CRD89440,Royal Mail Group Ltd                    
Shropshire,00GG,Central Services - Trading Services,Supplies And Services - Communications & Computing    ,06/06/2017,6083404,40.79,Revenue,CRD89440,Royal Mail Group Ltd                    
Shropshire,00GG,Central Services - Trading Services,Supplies And Services - Communications & Computing    ,06/06/2017,6083404,2.62,Revenue,CRD89440,Royal Mail Group Ltd                    
Shropshire,00GG,Central Services - Trading Services,Supplies And Services - Communications & Computing    ,06/06/2017,6083404,0.76,Revenue,CRD89440,Royal Mail Group Ltd                    
Shropshire,00GG,Central Services - Trading Services,Supplies And Services - Communications & Computing    ,06/06/2017,6083404,0.54,Revenue,CRD89440,Royal Mail Group Ltd                    
Shropshire,00GG,Central Services - Trading Services,Supplies And Services - Communications & Computing    ,06/06/2017,6083404,2.28,Revenue,CRD89440,Royal Mail Group Ltd                    
Shropshire,00GG,Central Services - Trading Services,Supplies And Services - Communications & Computing    ,06/06/2017,6083404,11.40,Revenue,CRD89440,Royal Mail Group Ltd                    
Shropshire,00GG,Central Services - Trading Services,Supplies And Services - Communications & Computing    ,06/06/2017,6083404,0.38,Revenue,CRD89440,Royal Mail Group Ltd                    
Shropshire,00GG,Central Services - Trading Services,Supplies And Services - Communications & Computing    ,06/06/2017,6083404,0.93,Revenue,CRD89440,Royal Mail Group Ltd                    
Shropshire,00GG,Central Services - Trading Services,Supplies And Services - Communications & Computing    ,06/06/2017,6083404,15.58,Revenue,CRD89440,Royal Mail Group Ltd                    
Shropshire,00GG,Central Services - Trading Services,Supplies And Services - Communications & Computing    ,06/06/2017,6083404,338.58,Revenue,CRD89440,Royal Mail Group Ltd                    
Shropshire,00GG,Central Services - Trading Services,Supplies And Services - Communications & Computing    ,06/06/2017,6083404,26.22,Revenue,CRD89440,Royal Mail Group Ltd                    
Shropshire,00GG,Central Services - Trading Services,Supplies And Services - Communications & Computing    ,06/06/2017,6083404,58.86,Revenue,CRD89440,Royal Mail Group Ltd                    
Shropshire,00GG,Central Services - Trading Services,Supplies And Services - Communications & Computing    ,06/06/2017,6083404,20.73,Revenue,CRD89440,Royal Mail Group Ltd                    
Shropshire,00GG,Central Services - Trading Services,Supplies And Services - Communications & Computing    ,06/06/2017,6083404,13.60,Revenue,CRD89440,Royal Mail Group Ltd                    
Shropshire,00GG,Central Services - Trading Services,Supplies And Services - Communications & Computing    ,06/06/2017,6083404,0.76,Revenue,CRD89440,Royal Mail Group Ltd                    
Shropshire,00GG,Central Services - Trading Services,Supplies And Services - Communications & Computing    ,06/06/2017,6083404,0.66,Revenue,CRD89440,Royal Mail Group Ltd                    
Shropshire,00GG,Central Services - Trading Services,Supplies And Services - Communications & Computing    ,06/06/2017,6083404,2.66,Revenue,CRD89440,Royal Mail Group Ltd                    
Shropshire,00GG,Central Services - Trading Services,Supplies And Services - Communications & Computing    ,06/06/2017,6083404,17.48,Revenue,CRD89440,Royal Mail Group Ltd                    
Shropshire,00GG,Central Services - Trading Services,Supplies And Services - Communications & Computing    ,06/06/2017,6083404,0.85,Revenue,CRD89440,Royal Mail Group Ltd                    
Shropshire,00GG,Central Services - Trading Services,Supplies And Services - Communications & Computing    ,06/06/2017,6083404,0.34,Revenue,CRD89440,Royal Mail Group Ltd                    
Shropshire,00GG,Central Services - Trading Services,Supplies And Services - Communications & Computing    ,06/06/2017,6083404,0.66,Revenue,CRD89440,Royal Mail Group Ltd                    
Shropshire,00GG,Central Services - Trading Services,Supplies And Services - Communications & Computing    ,06/06/2017,6083404,1.52,Revenue,CRD89440,Royal Mail Group Ltd                    
Shropshire,00GG,Central Services - Trading Services,Supplies And Services - Communications & Computing    ,06/06/2017,6083404,0.38,Revenue,CRD89440,Royal Mail Group Ltd                    
Shropshire,00GG,Central Services - Trading Services,Supplies And Services - Communications & Computing    ,06/06/2017,6083404,0.76,Revenue,CRD89440,Royal Mail Group Ltd                    
Shropshire,00GG,Central Services - Trading Services,Supplies And Services - Communications & Computing    ,06/06/2017,6083404,9.12,Revenue,CRD89440,Royal Mail Group Ltd                    
Shropshire,00GG,Central Services - Trading Services,Supplies And Services - Communications & Computing    ,06/06/2017,6083404,122.36,Revenue,CRD89440,Royal Mail Group Ltd                    
Shropshire,00GG,Central Services - Trading Services,Supplies And Services - Communications & Computing    ,06/06/2017,6083404,7.02,Revenue,CRD89440,Royal Mail Group Ltd                    
Shropshire,00GG,Central Services - Trading Services,Supplies And Services - Communications & Computing    ,06/06/2017,6083404,24.93,Revenue,CRD89440,Royal Mail Group Ltd                    
Shropshire,00GG,Central Services - Trading Services,Supplies And Services - Communications & Computing    ,06/06/2017,6083404,6.45,Revenue,CRD89440,Royal Mail Group Ltd                    
Shropshire,00GG,Central Services - Trading Services,Supplies And Services - Communications & Computing    ,06/06/2017,6083404,1.84,Revenue,CRD89440,Royal Mail Group Ltd                    
Shropshire,00GG,Central Services - Trading Services,Supplies And Services - Communications & Computing    ,06/06/2017,6083404,21.53,Revenue,CRD89440,Royal Mail Group Ltd                    
Shropshire,00GG,Central Services - Trading Services,Supplies And Services - Communications & Computing    ,06/06/2017,6083404,18.24,Revenue,CRD89440,Royal Mail Group Ltd                    
Shropshire,00GG,Central Services - Trading Services,Supplies And Services - Communications & Computing    ,06/06/2017,6083404,2.79,Revenue,CRD89440,Royal Mail Group Ltd                    
Shropshire,00GG,Central Services - Trading Services,Supplies And Services - Communications & Computing    ,06/06/2017,6083404,34.56,Revenue,CRD89440,Royal Mail Group Ltd                    
Shropshire,00GG,Central Services - Trading Services,Supplies And Services - Communications & Computing    ,06/06/2017,6083404,173.66,Revenue,CRD89440,Royal Mail Group Ltd                    
Shropshire,00GG,Central Services - Trading Services,Supplies And Services - Communications & Computing    ,06/06/2017,6083404,0.38,Revenue,CRD89440,Royal Mail Group Ltd                    
Shropshire,00GG,Central Services - Trading Services,Supplies And Services - Communications & Computing    ,06/06/2017,6083404,1.52,Revenue,CRD89440,Royal Mail Group Ltd                    
Shropshire,00GG,Central Services - Trading Services,Supplies And Services - Communications & Computing    ,06/06/2017,6083404,1.90,Revenue,CRD89440,Royal Mail Group Ltd                    
Shropshire,00GG,Central Services - Trading Services,Supplies And Services - Communications & Computing    ,06/06/2017,6083404,0.38,Revenue,CRD89440,Royal Mail Group Ltd                    
Shropshire,00GG,Central Services - Trading Services,Supplies And Services - Miscellaneous Expenses        ,06/06/2017,6103584,540.26,Revenue,CRD14706,R M W Electrical Services Ltd           
Shropshire,00GG,Central Services - Trading Services,Supplies And Services - Miscellaneous Expenses        ,06/06/2017,6098548,"1,190.00",Revenue,CRT04893,Gravitas Recruitment Group              
Shropshire,00GG,Central Services - Trading Services,Supplies And Services - Miscellaneous Expenses        ,06/06/2017,6098548,255.00,Revenue,CRT04893,Gravitas Recruitment Group              
Shropshire,00GG,Central Services - Trading Services,Supplies And Services - Miscellaneous Expenses        ,06/06/2017,6098548,255.00,Revenue,CRT04893,Gravitas Recruitment Group              
Shropshire,00GG,Central Services - Trading Services,Supplies And Services - Miscellaneous Expenses        ,06/06/2017,6102588,"3,473.50",Revenue,CRD98017,Ashfords Llp                            
Shropshire,00GG,Central Services - Trading undertakings,Supplies And Services - Catering                      ,07/06/2017,6104590,555.79,Revenue,CRD76838,Bidfood                                 
Shropshire,00GG,Central Services - Trading undertakings,Supplies And Services - Catering                      ,07/06/2017,6104460,542.43,Revenue,CRD76838,Bidfood                                 
Shropshire,00GG,Central Services - Trading undertakings,Supplies And Services - Catering                      ,07/06/2017,6104410,714.87,Revenue,CRD76838,Bidfood                                 
Shropshire,00GG,Central Services - Trading undertakings,Supplies And Services - Catering                      ,07/06/2017,6104506,7.46,Revenue,CRD76838,Bidfood                                 
Shropshire,00GG,Central Services - Trading undertakings,Supplies And Services - Catering                      ,07/06/2017,6104506,636.55,Revenue,CRD76838,Bidfood                                 
Shropshire,00GG,Central Services - Trading undertakings,Supplies And Services - Catering                      ,07/06/2017,6104408,10.88,Revenue,CRD76838,Bidfood                                 
Shropshire,00GG,Central Services - Trading undertakings,Supplies And Services - Catering                      ,07/06/2017,6104408,678.94,Revenue,CRD76838,Bidfood                                 
Shropshire,00GG,Central Services - Trading undertakings,Supplies And Services - Catering                      ,07/06/2017,6104440,507.64,Revenue,CRD76838,Bidfood                                 
Shropshire,00GG,Central Services - Trading undertakings,Supplies And Services - Catering                      ,07/06/2017,6104435,515.20,Revenue,CRD76838,Bidfood                                 
Shropshire,00GG,Central Services - Trading undertakings,Supplies And Services - Catering                      ,07/06/2017,6104503,29.47,Revenue,CRD76838,Bidfood                                 
Shropshire,00GG,Central Services - Trading undertakings,Supplies And Services - Catering                      ,07/06/2017,6104503,466.63,Revenue,CRD76838,Bidfood                                 
Shropshire,00GG,Central Services - Trading undertakings,Supplies And Services - Catering                      ,07/06/2017,6104433,18.48,Revenue,CRD76838,Bidfood                                 
Shropshire,00GG,Central Services - Trading undertakings,Supplies And Services - Catering                      ,07/06/2017,6104433,838.86,Revenue,CRD76838,Bidfood                                 
Shropshire,00GG,Central Services - Trading undertakings,Supplies And Services - Catering                      ,07/06/2017,6104530,18.14,Revenue,CRD76838,Bidfood                                 
Shropshire,00GG,Central Services - Trading undertakings,Supplies And Services - Catering                      ,07/06/2017,6104530,771.03,Revenue,CRD76838,Bidfood                                 
Shropshire,00GG,Central Services - Trading undertakings,Supplies And Services - Catering                      ,07/06/2017,6104470,17.78,Revenue,CRD76838,Bidfood                                 
Shropshire,00GG,Central Services - Trading undertakings,Supplies And Services - Catering                      ,07/06/2017,6104470,898.40,Revenue,CRD76838,Bidfood                                 
Shropshire,00GG,Central Services - Trading undertakings,Supplies And Services - Catering                      ,07/06/2017,6104557,701.39,Revenue,CRD76838,Bidfood                                 
Shropshire,00GG,Central Services - Trading undertakings,Supplies And Services - Catering                      ,07/06/2017,6104554,16.64,Revenue,CRD76838,Bidfood                                 
Shropshire,00GG,Central Services - Trading undertakings,Supplies And Services - Catering                      ,07/06/2017,6104554,486.48,Revenue,CRD76838,Bidfood                                 
Shropshire,00GG,Central Services - Trading undertakings,Supplies And Services - Catering                      ,07/06/2017,6104447,12.54,Revenue,CRD76838,Bidfood                                 
Shropshire,00GG,Central Services - Trading undertakings,Supplies And Services - Catering                      ,07/06/2017,6104447,500.83,Revenue,CRD76838,Bidfood                                 
Shropshire,00GG,Central Services - Trading undertakings,Supplies And Services - Catering                      ,07/06/2017,6104487,10.88,Revenue,CRD76838,Bidfood                                 
Shropshire,00GG,Central Services - Trading undertakings,Supplies And Services - Catering                      ,07/06/2017,6104487,649.54,Revenue,CRD76838,Bidfood                                 
Shropshire,00GG,Central Services - Trading undertakings,Supplies And Services - Catering                      ,07/06/2017,6104588,12.77,Revenue,CRD76838,Bidfood                                 
Shropshire,00GG,Central Services - Trading undertakings,Supplies And Services - Catering                      ,07/06/2017,6104588,521.43,Revenue,CRD76838,Bidfood                                 
Shropshire,00GG,Central Services - Trading undertakings,Supplies And Services - Catering                      ,07/06/2017,6104583,8.32,Revenue,CRD76838,Bidfood                                 
Shropshire,00GG,Central Services - Trading undertakings,Supplies And Services - Catering                      ,07/06/2017,6104583,664.18,Revenue,CRD76838,Bidfood                                 
Shropshire,00GG,Central Services - Trading undertakings,Supplies And Services - Catering                      ,07/06/2017,6104555,547.53,Revenue,CRD76838,Bidfood                                 
Shropshire,00GG,Central Services - Trading undertakings,Supplies And Services - Catering                      ,07/06/2017,6104591,540.23,Revenue,CRD76838,Bidfood                                 
Shropshire,00GG,Central Services - Trading undertakings,Supplies And Services - Catering                      ,07/06/2017,6104444,569.41,Revenue,CRD76838,Bidfood                                 
Shropshire,00GG,Central Services - Trading undertakings,Supplies And Services - Catering                      ,07/06/2017,6104543,642.20,Revenue,CRD76838,Bidfood                                 
Shropshire,00GG,Central Services - Trading undertakings,Supplies And Services - Catering                      ,07/06/2017,6104437,72.78,Revenue,CRD76838,Bidfood                                 
Shropshire,00GG,Central Services - Trading undertakings,Supplies And Services - Catering                      ,07/06/2017,6104437,"1,454.21",Revenue,CRD76838,Bidfood                                 
Shropshire,00GG,Central Services - Trading undertakings,Supplies And Services - Catering                      ,07/06/2017,6104496,44.76,Revenue,CRD76838,Bidfood                                 
Shropshire,00GG,Central Services - Trading undertakings,Supplies And Services - Catering                      ,07/06/2017,6104496,"1,229.01",Revenue,CRD76838,Bidfood                                 
Shropshire,00GG,Central Services - Trading undertakings,Supplies And Services - Catering                      ,07/06/2017,6104595,59.68,Revenue,CRD76838,Bidfood                                 
Shropshire,00GG,Central Services - Trading undertakings,Supplies And Services - Catering                      ,07/06/2017,6104595,758.93,Revenue,CRD76838,Bidfood                                 
Shropshire,00GG,Central Services - Trading undertakings,Supplies And Services - Catering                      ,07/06/2017,6104505,968.15,Revenue,CRD76838,Bidfood                                 
Shropshire,00GG,Central Services - Trading undertakings,Supplies And Services - Catering                      ,07/06/2017,6104411,510.95,Revenue,CRD76838,Bidfood                                 
Shropshire,00GG,Central Services - Trading undertakings,Supplies And Services - Catering                      ,07/06/2017,6104492,26.87,Revenue,CRD76838,Bidfood                                 
Shropshire,00GG,Central Services - Trading undertakings,Supplies And Services - Catering                      ,07/06/2017,6104492,587.96,Revenue,CRD76838,Bidfood                                 
Shropshire,00GG,Central Services - Trading undertakings,Supplies And Services - Catering                      ,07/06/2017,6104450,635.27,Revenue,CRD76838,Bidfood                                 
Shropshire,00GG,Central Services - Trading undertakings,Supplies And Services - Catering                      ,07/06/2017,6104582,604.20,Revenue,CRD76838,Bidfood                                 
Shropshire,00GG,Central Services - Trading undertakings,Supplies And Services - Catering                      ,07/06/2017,6104573,524.17,Revenue,CRD76838,Bidfood                                 
Shropshire,00GG,Central Services - Trading undertakings,Supplies And Services - Catering                      ,07/06/2017,6104500,536.81,Revenue,CRD76838,Bidfood                                 
Shropshire,00GG,Central Services - Trading undertakings,Supplies And Services - Catering                      ,07/06/2017,6104534,32.88,Revenue,CRD76838,Bidfood                                 
Shropshire,00GG,Central Services - Trading undertakings,Supplies And Services - Catering                      ,07/06/2017,6104534,480.49,Revenue,CRD76838,Bidfood                                 
Shropshire,00GG,Central Services - Trading undertakings,Supplies And Services - Catering                      ,07/06/2017,6104597,525.19,Revenue,CRD76838,Bidfood                                 
Shropshire,00GG,Central Services - Trading undertakings,Supplies And Services - Catering                      ,07/06/2017,6104434,"1,226.34",Revenue,CRD76838,Bidfood                                 
Shropshire,00GG,Central Services - Trading undertakings,Supplies And Services - Catering                      ,07/06/2017,6104502,"1,003.41",Revenue,CRD76838,Bidfood                                 
Shropshire,00GG,Central Services - Trading undertakings,Supplies And Services - Catering                      ,07/06/2017,6104499,59.47,Revenue,CRD76838,Bidfood                                 
Shropshire,00GG,Central Services - Trading undertakings,Supplies And Services - Catering                      ,07/06/2017,6104499,433.36,Revenue,CRD76838,Bidfood                                 
Shropshire,00GG,Central Services - Trading undertakings,Supplies And Services - Catering                      ,07/06/2017,6104600,5.27,Revenue,CRD76838,Bidfood                                 
Shropshire,00GG,Central Services - Trading undertakings,Supplies And Services - Catering                      ,07/06/2017,6104600,669.52,Revenue,CRD76838,Bidfood                                 
Shropshire,00GG,Central Services - Trading Services,Supplies And Services - Catering                      ,07/06/2017,6104482,8.30,Revenue,CRD76838,Bidfood                                 
Shropshire,00GG,Central Services - Trading Services,Supplies And Services - Catering                      ,07/06/2017,6104482,825.72,Revenue,CRD76838,Bidfood                                 
Shropshire,00GG,Central Services - Trading Services,Supplies And Services - Catering                      ,07/06/2017,6104569,938.12,Revenue,CRD76838,Bidfood                                 
Shropshire,00GG,Central Services - Trading Services,Supplies And Services - Catering                      ,07/06/2017,6104436,766.70,Revenue,CRD76838,Bidfood                                 
Shropshire,00GG,Central Services - Trading Services,Supplies And Services - Catering                      ,07/06/2017,6104420,15.78,Revenue,CRD76838,Bidfood                                 
Shropshire,00GG,Central Services - Trading Services,Supplies And Services - Catering                      ,07/06/2017,6104420,762.40,Revenue,CRD76838,Bidfood                                 
Shropshire,00GG,Central Services - Trading undertakings,Supplies And Services - Catering                      ,07/06/2017,6104531,66.64,Revenue,CRD76838,Bidfood                                 
Shropshire,00GG,Central Services - Trading undertakings,Supplies And Services - Catering                      ,07/06/2017,6104531,568.38,Revenue,CRD76838,Bidfood                                 
Shropshire,00GG,Highways and Transport Services - Management & Support Services,Transport Related   - Transport Recharges           ,07/06/2017,6095878,"13,212.72",Revenue,CRD91207,Lex Autolease Ltd                       
Shropshire,00GG,Highways and Transport Services - Public Transport,Supplies And Services - Grants & Subscriptions        ,07/06/2017,6089591,"172,484.00",Revenue,CRD10149,Arriva Midlands  Ltd                    
Shropshire,00GG,None SeRCOP - Balance Sheet,Contingency/Other Capital - Suspense                      ,07/06/2017,6096627,"59,763.03",Revenue,CRD97442,West Mercia Energy                      
Shropshire,00GG,Children's and Education Services - Social Care and Safeguards Other,Supplies And Services - Miscellaneous Expenses        ,07/06/2017,6104114,1.00,Revenue,CRD66629,Leaving Care Imprest 
Shropshire,00GG,Children's and Education Services - Social Care and Safeguards Looked After Children,Premises Related - Rents                         ,07/06/2017,6104114,325.00,Revenue,CRD66629,Leaving Care Imprest 
Shropshire,00GG,Children's and Education Services - Social Care and Safeguards Looked After Children,Supplies And Services - Miscellaneous Expenses        ,07/06/2017,6104114,33.69,Revenue,CRD66629,Leaving Care Imprest 
Shropshire,00GG,Children's and Education Services - Social Care and Safeguards Looked After Children,Supplies And Services - Grants & Subscriptions        ,07/06/2017,6104114,417.00,Revenue,CRD66629,Leaving Care Imprest 
Shropshire,00GG,Children's and Education Services - Social Care and Safeguards Looked After Children,Supplies And Services - Miscellaneous Expenses        ,07/06/2017,6104114,70.00,Revenue,CRD66629,Leaving Care Imprest 
Shropshire,00GG,Children's and Education Services - Social Care and Safeguards Looked After Children,Supplies And Services - Clothing Uniform & Laundry    ,07/06/2017,6104114,40.00,Revenue,CRD66629,Leaving Care Imprest 
Shropshire,00GG,Children's and Education Services - Social Care and Safeguards Looked After Children,Third Party Payments - Other Committees/Establishmts ,07/06/2017,6104114,212.00,Revenue,CRD66629,Leaving Care Imprest 
Shropshire,00GG,Children's and Education Services - Social Care and Safeguards Looked After Children,Transport Related   - Public Transport              ,07/06/2017,6104114,82.00,Revenue,CRD66629,Leaving Care Imprest 
Shropshire,00GG,Children's and Education Services - Social Care and Safeguards,Third Party Payments - Other Committees/Establishmts ,07/06/2017,6104114,638.00,Revenue,CRD66629,Leaving Care Imprest 
Shropshire,00GG,Children's and Education Services - Social Care and Safeguards,Transport Related   - Public Transport              ,07/06/2017,6104114,120.00,Revenue,CRD66629,Leaving Care Imprest 
Shropshire,00GG,Adult Social Care - Older people (aged 65 or over) including older mentally ill,Premises Related - Rents                         ,07/06/2017,6083210,"45,180.92",Revenue,CRT05304,Refugee Action                          
Shropshire,00GG,Adult Social Care - Adults aged under 65 with physical disability or sensory impairment,Third Party Payments - Private Contractors           ,07/06/2017,6082407,"1,666.08",Revenue,CRD30349,Headway Shropshire                      
Shropshire,00GG,Adult Social Care - Adults aged under 65 with physical disability or sensory impairment,Third Party Payments - Private Contractors           ,07/06/2017,6082432,"1,152.39",Revenue,CRD80377,Abbey Care Direct Ltd                   
Shropshire,00GG,Adult Social Care - Other adult social care - other,Third Party Payments - Private Contractors           ,07/06/2017,6082410,"2,883.84",Revenue,CRD30349,Headway Shropshire                      
Shropshire,00GG,Housing Services - Other Welfare Services,Supplies And Services - Miscellaneous Expenses        ,07/06/2017,6098983,"1,062.50",Revenue,GSP00108,Shropshire Housing Alliance             
Shropshire,00GG,Children's and Education Services  - School and Pupil Support,Transport Related   - Contracts                     ,07/06/2017,6104160,"1,904.60",Revenue,CRD68272,Central Taxis Ltd T/A Go Carz           
Shropshire,00GG,Adult Social Care - Adults aged under 65 with learning disabilities,Transport Related   - Direct Transport Costs        ,07/06/2017,6104272,"3,036.90",Revenue,CRD77164,Jeff'S Taxis & Minibuses                
Shropshire,00GG,Adult Social Care - Adults aged under 65 with learning disabilities,Transport Related   - Direct Transport Costs        ,07/06/2017,6104273,456.40,Revenue,CRD90254,Access Cars Shrewsbury Ltd              
Shropshire,00GG,"Cultural, Environmental, Regulatory and Planning Services  - Culture and heritage",Supplies And Services - Miscellaneous Expenses        ,07/06/2017,6104115,"4,045.69",Revenue,CRD87377,Etm (Agencies) Ltd                      
Shropshire,00GG,"Cultural, Environmental, Regulatory and Planning Services  - Culture and heritage",Supplies And Services - Miscellaneous Expenses        ,07/06/2017,6104117,"3,500.00",Revenue,CRD95118,Chimes International Entertainments Ltd 
Shropshire,00GG,"Cultural, Environmental, Regulatory and Planning Services  - Culture and heritage",Supplies And Services - Miscellaneous Expenses        ,07/06/2017,6101975,"1,567.22",Revenue,CRD98648,Bandwagon Productions Ltd               
Shropshire,00GG,"Cultural, Environmental, Regulatory and Planning Services  - Culture and heritage",Supplies And Services - Miscellaneous Expenses        ,07/06/2017,6104116,"3,841.27",Revenue,CRD99669,Alan Field Associates                   
Shropshire,00GG,"Cultural, Environmental, Regulatory and Planning Services  - Culture and heritage",Supplies And Services - Miscellaneous Expenses        ,07/06/2017,6101974,477.73,Revenue,CRT04676,Marshall Jones Music Limited            
Shropshire,00GG,"Cultural, Environmental, Regulatory and Planning Services  - Culture and heritage",Supplies And Services - Miscellaneous Expenses        ,07/06/2017,6104396,"59,674.83",Revenue,CRT05708,Nde Productions Limited                 
Shropshire,00GG,None SeRCOP - Capital,Contingency/Other Capital - Capital - Exp On Grants & Loan,07/06/2017,6104294,481.25,Capital,CRD94263,Mears Group Plc                         
Shropshire,00GG,None SeRCOP - Capital,Contingency/Other Capital - Capital - Exp On Grants & Loan,07/06/2017,6104293,"3,850.00",Capital,TOP29238,Aws Bathroom Supplies Ltd               
Shropshire,00GG,"Cultural, Environmental, Regulatory and Planning Services  - Culture and heritage",Premises Related - Rates                         ,07/06/2017,6102218,"6,349.96",Revenue,RAT00019,Shropshire Council - Non Domestic Rates 
Shropshire,00GG,"Cultural, Environmental, Regulatory and Planning Services  - Culture and heritage",Premises Related - Rates                         ,07/06/2017,6102219,"1,736.52",Revenue,RAT00019,Shropshire Council - Non Domestic Rates 
Shropshire,00GG,"Cultural, Environmental, Regulatory and Planning Services  - Culture and heritage",Premises Related - Rates                         ,07/06/2017,6102217,"6,873.50",Revenue,RAT00019,Shropshire Council - Non Domestic Rates 
Shropshire,00GG,"Cultural, Environmental, Regulatory and Planning Services  - Culture and heritage",Premises Related - Rates                         ,07/06/2017,6102220,"45,575.20",Revenue,RAT00019,Shropshire Council - Non Domestic Rates 
Shropshire,00GG,"Cultural, Environmental, Regulatory and Planning Services  - Culture and heritage",Premises Related - Rates                         ,07/06/2017,6102221,"8,553.01",Revenue,RAT00019,Shropshire Council - Non Domestic Rates 
Shropshire,00GG,Central Services - Trading Services,Premises Related - Rents                         ,07/06/2017,6104222,"1,500.00",Revenue,CRD50177,South Shropshire Furniture Scheme       
Shropshire,00GG,Central Services - Trading Services,Supplies And Services - Miscellaneous Expenses        ,07/06/2017,6087887,"9,135.00",Revenue,CRT05256,Permanent Futures Ltd                   
Shropshire,00GG,Children's and Education Services - Music,Supplies And Services - Equipt.  Furn. & Materials    ,08/06/2017,6094546,"2,268.00",Revenue,CRD48544,John Packer Ltd                         
Shropshire,00GG,Central Services - Trading undertakings,Supplies And Services - Catering                      ,08/06/2017,6091694,500.55,Revenue,CRD92131,Tugo Food Systems                       
Shropshire,00GG,Central Services - Trading undertakings,Premises Related - Energy Costs                  ,08/06/2017,6089316,645.82,Revenue,CRD99325,Perry Wood Primary & Nursery School     
Shropshire,00GG,Central Services - Trading undertakings,Premises Related - Energy Costs                  ,08/06/2017,6089316,346.58,Revenue,CRD99325,Perry Wood Primary & Nursery School     
Shropshire,00GG,Central Services - Trading undertakings,Premises Related - Water                         ,08/06/2017,6089316,91.46,Revenue,CRD99325,Perry Wood Primary & Nursery School     
Shropshire,00GG,Central Services - Trading undertakings,Supplies And Services - Miscellaneous Expenses        ,08/06/2017,6089316,400.00,Revenue,CRD99325,Perry Wood Primary & Nursery School     
Shropshire,00GG,"Cultural, Environmental, Regulatory and Planning Services  - Environmental initiatives",Employees - Indirect Employee Expenses    ,08/06/2017,6088856,418.95,Revenue,CRD97078,Quantified Tree Risk Assessment Ltd     
Shropshire,00GG,"Cultural, Environmental, Regulatory and Planning Services  - Development Control",Supplies And Services - Miscellaneous Expenses        ,08/06/2017,6088858,471.24,Revenue,CRD10463,Midland News Association Ltd            
Shropshire,00GG,Highways and Transport Services - Management & Support Services,Transport Related   - Transport Recharges           ,08/06/2017,6104720,467.14,Revenue,CRD91207,Lex Autolease Ltd                       
Shropshire,00GG,Highways and Transport Services - Management & Support Services,Transport Related   - Direct Transport Costs        ,08/06/2017,6089677,420.00,Revenue,CRD92912,Car Hire (Day Of Swansea) Ltd           
Shropshire,00GG,Highways and Transport Services - Management & Support Services,Transport Related   - Direct Transport Costs        ,08/06/2017,6089678,420.00,Revenue,CRD92912,Car Hire (Day Of Swansea) Ltd           
Shropshire,00GG,Highways and Transport Services - Management & Support Services,Transport Related   - Direct Transport Costs        ,08/06/2017,6095882,"5,618.39",Revenue,CRT05680,Uk Fuels Limited                        
Shropshire,00GG,Highways and Transport Services - Management & Support Services,Transport Related   - Direct Transport Costs        ,08/06/2017,6095882,26.31,Revenue,CRT05680,Uk Fuels Limited                        
Shropshire,00GG,Highways and Transport Services - Public Transport,Supplies And Services - Grants & Subscriptions        ,08/06/2017,6091677,536.37,Revenue,CRT04739,The Booking Point Limited               
Shropshire,00GG,Highways and Transport Services - Public Transport,Supplies And Services - Grants & Subscriptions        ,08/06/2017,6104884,930.00,Revenue,CRD48856,Ncc Services Ltd                        
Shropshire,00GG,Highways and Transport Services - Public Transport,Supplies And Services - Grants & Subscriptions        ,08/06/2017,6104871,562.56,Revenue,CRD96806,Celtic Travel                           
Shropshire,00GG,"Cultural, Environmental, Regulatory and Planning Services  - Trading undertakings",Supplies And Services - Miscellaneous Expenses        ,08/06/2017,6092399,723.68,Revenue,CRD52065,David Whyman Map Sales                  
Shropshire,00GG,"Cultural, Environmental, Regulatory and Planning Services  - Recreation and sport",Premises Related - Repair & Maint. General       ,08/06/2017,6098298,744.30,Revenue,CRD09730,J P Lennard Ltd                         
Shropshire,00GG,Children's and Education Services - Social Care and Safeguards Looked After Children,Third Party Payments - Private Contractors           ,08/06/2017,6099632,"11,957.14",Revenue,CRT05659,Utopia Children Serv Ltd - Darwin House 
Shropshire,00GG,Children's and Education Services - Social Care and Safeguards Looked After Children,Third Party Payments - Private Contractors           ,08/06/2017,6093008,700.00,Revenue,CRD93588,Swiis Foster Care                       
Shropshire,00GG,Children's and Education Services - Social Care and Safeguards Other,Supplies And Services - Miscellaneous Expenses        ,08/06/2017,6104885,161.89,Revenue,CRD83622,Lac Team Imprest Acc
Shropshire,00GG,Children's and Education Services - Social Care and Safeguards Other,Transport Related   - Public Transport              ,08/06/2017,6104885,22.00,Revenue,CRD83622,Lac Team Imprest Acc
Shropshire,00GG,Children's and Education Services - Social Care and Safeguards Other,Supplies And Services - Miscellaneous Expenses        ,08/06/2017,6104885,177.15,Revenue,CRD83622,Lac Team Imprest Acc
Shropshire,00GG,Children's and Education Services - Social Care and Safeguards Other,Transport Related   - Public Transport              ,08/06/2017,6104885,34.60,Revenue,CRD83622,Lac Team Imprest Acc
Shropshire,00GG,Children's and Education Services - Social Care and Safeguards Other,Supplies And Services - Miscellaneous Expenses        ,08/06/2017,6104885,100.00,Revenue,CRD83622,Lac Team Imprest Acc
Shropshire,00GG,Children's and Education Services - Social Care and Safeguards Other,Transport Related   - Public Transport              ,08/06/2017,6104885,15.50,Revenue,CRD83622,Lac Team Imprest Acc
Shropshire,00GG,Children's and Education Services - Social Care and Safeguards Other,Supplies And Services - Communications & Computing    ,08/06/2017,6104885,21.70,Revenue,CRD83622,Lac Team Imprest Acc
Shropshire,00GG,Children's and Education Services - Social Care and Safeguards Other,Transport Related   - Public Transport              ,08/06/2017,6104885,16.67,Revenue,CRD83622,Lac Team Imprest Acc
Shropshire,00GG,Children's and Education Services - Family Support Services,Supplies And Services - Grants & Subscriptions        ,08/06/2017,6094450,298.00,Revenue,CRD97316,Heart Of England Nhs Foundation Trust   
Shropshire,00GG,Children's and Education Services - Family Support Services,Supplies And Services - Grants & Subscriptions        ,08/06/2017,6094450,20.00,Revenue,CRD97316,Heart Of England Nhs Foundation Trust   
Shropshire,00GG,Children's and Education Services - Family Support Services,Supplies And Services - Grants & Subscriptions        ,08/06/2017,6094450,760.00,Revenue,CRD97316,Heart Of England Nhs Foundation Trust   
Shropshire,00GG,Children's and Education Services - Family Support Services,Supplies And Services - Grants & Subscriptions        ,08/06/2017,6094450,385.00,Revenue,CRD97316,Heart Of England Nhs Foundation Trust   
Shropshire,00GG,Children's and Education Services - Social Care and Safeguards Family Support Services,Third Party Payments - Private Contractors           ,08/06/2017,6104289,"5,000.00",Revenue,CRT03629,Carers Trust 4 All Shropshire           
Shropshire,00GG,Children's and Education Services - Social Care and Safeguards Family Support Services,Third Party Payments - Private Contractors           ,08/06/2017,6104290,"5,000.00",Revenue,CRT03629,Carers Trust 4 All Shropshire           
Shropshire,00GG,Children's and Education Services - Social Care and Safeguards,Employees - Indirect Employee Expenses    ,08/06/2017,6088624,691.00,Revenue,CRD71936,British Red Cross                       
Shropshire,00GG,Adult Social Care - Older people (aged 65 or over) including older mentally ill,Third Party Payments - Private Contractors           ,08/06/2017,6105123,"5,884.15",Revenue,CRD86702,J K Caring For You                      
Shropshire,00GG,Adult Social Care - Older people (aged 65 or over) including older mentally ill,Third Party Payments - Private Contractors           ,08/06/2017,6100671,804.60,Revenue,CRD86702,J K Caring For You                      
Shropshire,00GG,Adult Social Care - Older people (aged 65 or over) including older mentally ill,Third Party Payments - Private Contractors           ,08/06/2017,6098887,"2,630.00",Revenue,CRD95298,Tailored Care Ltd                       
Shropshire,00GG,Adult Social Care - Older people (aged 65 or over) including older mentally ill,Third Party Payments - Private Contractors           ,08/06/2017,6100676,"1,623.12",Revenue,CRD99031,Care Of Excellence Ltd                  
